Workbook

Sheet Input
B7: Development of BGS-RSCP Cost and Bid Factors for 2020/2021 BGS Filing
B8: Adjusted to Billing Time Periods
E9: Based on average of year 2016,2017 & 2018 Load Profile Information
A10: Table #1 | B10: % Usage During PJM On-Peak Period | E10: On-Peak periods defined as the 16 hr PJM Trading period, adj for NERC holidays
C11: Profile Meter Data | D11: Profile Meter Data | E11: Profile Meter Data | F11: Profile Meter Data | G11: Profile Meter Data | H11: Profile Meter Data | I11: --- Other Analysis --- | K11: Profile Meter Data | L11: Profile Meter Data
B12: (data rounded to nearest .01%) | C12: RS | D12: RHS | E12: RLM | F12: WH | G12: WHS | H12: HS | I12: PSAL | J12: BPL | K12: GLP | L12: LPL-S
B14: January | C14: 0.4687 | D14: 0.467 | E14: 0.4787 | F14: 0.4687 | G14: 0.4687 | H14: 0.458 | I14: 0.3 | J14: 0.3 | K14: 0.546 | L14: 0.5243
B15: February | C15: 0.4987 | D15: 0.4907 | E15: 0.5067 | F15: 0.4987 | G15: 0.4987 | H15: 0.478 | I15: 0.2973 | J15: 0.2973 | K15: 0.5697 | L15: 0.5503
B16: March | C16: 0.5043 | D16: 0.4957 | E16: 0.514 | F16: 0.5043 | G16: 0.5043 | H16: 0.4863 | I16: 0.264 | J16: 0.264 | K16: 0.58 | L16: 0.56
B17: April | C17: 0.4763 | D17: 0.4813 | E17: 0.4903 | F17: 0.4763 | G17: 0.4763 | H17: 0.4927 | I17: 0.219 | J17: 0.219 | K17: 0.566 | L17: 0.5433
B18: May | C18: 0.4977 | D18: 0.5087 | E18: 0.5173 | F18: 0.4977 | G18: 0.4977 | H18: 0.5857 | I18: 0.212 | J18: 0.212 | K18: 0.589 | L18: 0.5643
B19: June | C19: 0.523 | D19: 0.53 | E19: 0.5437 | F19: 0.523 | G19: 0.523 | H19: 0.6283 | I19: 0.2037 | J19: 0.2037 | K19: 0.605 | L19: 0.577
B20: July | C20: 0.4883 | D20: 0.4973 | E20: 0.5073 | F20: 0.4883 | G20: 0.4883 | H20: 0.5833 | I20: 0.183 | J20: 0.183 | K20: 0.562 | L20: 0.5287
B21: August | C21: 0.5443 | D21: 0.5537 | E21: 0.5637 | F21: 0.5443 | G21: 0.5443 | H21: 0.6393 | I21: 0.2253 | J21: 0.2253 | K21: 0.618 | L21: 0.58
B22: September | C22: 0.487 | D22: 0.4963 | E22: 0.5047 | F22: 0.487 | G22: 0.487 | H22: 0.595 | I22: 0.2267 | J22: 0.2267 | K22: 0.5707 | L22: 0.5417
B23: October | C23: 0.4993 | D23: 0.5177 | E23: 0.5183 | F23: 0.4993 | G23: 0.4993 | H23: 0.5717 | I23: 0.2693 | J23: 0.2693 | K23: 0.588 | L23: 0.5647
B24: November | C24: 0.482 | D24: 0.4827 | E24: 0.5017 | F24: 0.482 | G24: 0.482 | H24: 0.489 | I24: 0.31 | J24: 0.31 | K24: 0.5647 | L24: 0.542
B25: December | C25: 0.4547 | D25: 0.4523 | E25: 0.4683 | F25: 0.4547 | G25: 0.4547 | H25: 0.4543 | I25: 0.2987 | J25: 0.2987 | K25: 0.5263 | L25: 0.5033
E27: =E9 -> Based on average of year 2016,2017 & 2018 Load Profile Information
A28: Table #2 | B28: % Usage During PSE&G On-Peak Billing Period | E28: On-Peak periods as defined in specified rate schedule (average of %s for 2016, 2017 & 2018)
C29: Profile Meter Data | D29: Profile Meter Data
B30: (data rounded to nearest .01%) | C30: RLM | D30: LPL-S
B32: January | C32: 0.427 | D32: 0.4783
B33: February | C33: 0.4232 | D33: 0.4826
B34: March | C34: 0.4185 | D34: 0.4811
B35: April | C35: 0.4193 | D35: 0.4894
B36: May | C36: 0.4437 | D36: 0.5014
B37: June | C37: 0.46 | D37: 0.5073
B38: July | C38: 0.4865 | D38: 0.5064
B39: August | C39: 0.4862 | D39: 0.4994
B40: September | C40: 0.4875 | D40: 0.5078
B41: October | C41: 0.4618 | D41: 0.5062
B42: November | C42: 0.4361 | D42: 0.4968
B43: December | C43: 0.4285 | D43: 0.4853
A46: Table #3 | B46: Class Usage @ customer
B47: Calendar month sales forecasted for 2020, less % for LPL-Sec > 500 kW Peak Load Share
B48: in MWh | C48: RS | D48: RHS | E48: RLM | F48: WH | G48: WHS | H48: HS | I48: PSAL | J48: BPL | K48: GLP | L48: LPL-S
B50: January | C50: 1103241.022 | D50: 17093.91401 | E50: 15933.36508 | F50: 94 | G50: 2 | H50: 2155.435576 | I50: 16719 | J50: 31492 | K50: 561707.3742 | L50: 673444.3155
B51: February | C51: 884939.9685 | D51: 14489.69439 | E51: 12532.01013 | F51: 88 | G51: 2 | H51: 2053.812425 | I51: 13249 | J51: 27940 | K51: 500731.3468 | L51: 590922.9704
B52: March | C52: 900474.2035 | D52: 12286.79995 | E52: 13347.07697 | F52: 165 | G52: 2 | H52: 1461.153039 | I52: 13900 | J52: 27825 | K52: 543590.6709 | L52: 651708.5131
B53: April | C53: 737564.8596 | D53: 7198.465331 | E53: 11110.64796 | F53: 70 | G53: 2 | H53: 882.1572701 | I53: 11672 | J53: 25198 | K53: 482431.3892 | L53: 573824.6523
B54: May | C54: 808596.1836 | D54: 5010.217799 | E54: 13150.6983 | F54: 104 | G54: 2 | H54: 405.6386286 | I54: 10104 | J54: 19612 | K54: 489186.3244 | L54: 615626.3647
B55: June | C55: 1213518.816 | D55: 6546.189851 | E55: 20680.77194 | F55: 74 | G55: 1 | H55: 649.0218057 | I55: 9635 | J55: 18056 | K55: 569919.3045 | L55: 671202.5331
B56: July | C56: 1621529.346 | D56: 7259.98233 | E56: 26953.45006 | F56: 59 | G56: 1 | H56: 690.0126566 | I56: 9762 | J56: 19121 | K56: 639726.0537 | L56: 734766.5857
B57: August | C57: 1506520.127 | D57: 6941.656272 | E57: 24935.32551 | F57: 63 | G57: 1 | H57: 690.8666327 | I57: 10865 | J57: 17559 | K57: 646706.1534 | L57: 750385.4203
B58: September | C58: 1036720.698 | D58: 5424.236966 | E58: 16647.3827 | F58: 63 | G58: 1 | H58: 574.7258885 | I58: 11995 | J58: 19529 | K58: 535683.6166 | L58: 642539.6959
B59: October | C59: 763663.1091 | D59: 6421.202933 | E59: 11329.90571 | F59: 65 | G59: 1 | H59: 706.2382018 | I59: 14117 | J59: 20385 | K59: 518851.3372 | L59: 630185.6768
B60: November | C60: 815550.2384 | D60: 8801.813144 | E60: 10806.547 | F60: 77 | G60: 1 | H60: 918.0242647 | I60: 14980 | J60: 21877 | K60: 478026.7113 | L60: 598156.517
B61: December | C61: 1002234.658 | D61: 12482.09201 | E61: 13406.18124 | F61: 76 | G61: 1 | H61: 1473.108704 | I61: 16091 | J61: 36018 | K61: 523441.7347 | L61: 632595.9744
B64: LPL-S > 500 kW PLS | C64: % of | D64: % of
C65: kWh | D65: Gen Obl
C66: 0.36776443 | D66: 0.3575901305
A70: Table #4 | B70: Forwards Prices - Energy Only @ bulk system | E70: Table #5 | F70: Zone to Western Hub Basis Differential
B71: in $/MWh, not including PJM losses | F71: Off/On Pk
C72: On-Peak | F72: LMP ratio
B73: January | C73: 47.3 | E73: Summer | F73: 0.6684
B74: February | C74: 44.65 | E74: Winter | F74: 0.7876
B75: March | C75: 33.7
B76: April | C76: 29.5
B77: May | C77: 29.25
B78: June | C78: 29.3 | F78: Basis
B79: July | C79: 34.45 | F79: On-Peak | G79: Off-Peak
B80: August | C80: 31.95 | E80: Summer | F80: 0.94 | G80: 0.9
B81: September | C81: 31.45 | E81: Winter | F81: 0.97 | G81: 0.98
B82: October | C82: 29.35
B83: November | C83: 29.8
B84: December | C84: 33.4
A88: Table #6 | B88: Loss Type | C88: Percentage | D88: Source
B89: Delivery Losses | C89: 0.058327 | D89: Tariff (Result of 2018 Rate Case Loss Study)
B90: EHV Losses | C90: 0.00456 | D90: PJM - No update for 2019
B91: Marginal Loss Deration Factor | C91: 0.010525 | D91: NERA
A96: Table #10 | B96: Generation & Transmission Obligations and Costs and Other Adjustments
B97: Obligations - Peak Load shares eff 1/1/19, scaling factors eff 6/1/18, Transmission Loads eff 1/1/19; costs are market estimates
B98: in MW
C100: RS | D100: RHS | E100: RLM | F100: WH | G100: WHS | H100: HS | I100: PSAL | J100: BPL | K100: GLP | L100: LPL-S
B101: Generation Peak Load Share | C101: 3904.116948 | D101: 20.23385311 | E101: 67.95692497 | F101: 0 | G101: 0 | H101: 3.87050971 | I101: 0 | J101: 0 | K101: 1646.416659 | L101: 1377.047694
B102: Tranmsission Obligation | C102: 4225.806817 | D102: 21.90965839 | E102: 74.22140107 | F102: 0 | G102: 0 | H102: 4.255448493 | I102: 0 | J102: 0 | K102: 1768.498131 | L102: 1406.973468
B104: Final Zonal RPM Scaling Factor | C104: 1.105054399
B105: ="PJM June 1, "&(Input!D2-1)&" (through May 31, "&(Input!D2)&") Forecast Pool Requirement" -> PJM June 1, -1 (through May 31, ) Forecast Pool Requirement | C105: 1.0895
B107: NITS Rate | D107: Tranches | E107: NITS Rate
C108: 2018 | D108: 29 | E108: 101197
C109: 2019 | D109: 28 | E109: 104709.15
C110: 2020 | D110: 28 | E110: 138497.0843
E112: Base Capacity
B113: Generation Capacity cost | C113: summer = | E113: 174.13 | F113: $/MW/day
C114: winter = | E114: 174.13 | F114: $/MW/day
C115: Capacity Proxy Price True Up | E115: 0 | F115: $/MW/day
C118: RS | D118: RHS
B119: Required summer inversion = | C119: 0.8652 | D119: 1.1569 | E119: ¢/kWh | F119: (same as 2003/2004 BGS blocking inversion)(generally not updated)
A122: Table #11 | B122: Ancillary Services & Renewable Power Cost
B123: Ancillary Services | D123: 2 | E123: per MWh @ bulk system
B124: Renewable Power Cost | D124: 16.72 | E124: per MWh @ bulk system
A129: Bill Impacts | B129: BGS - CIEP BRA Clearing Price ($ per MW/Day)
B130: Annual Obligation Clearing Price | D130: 281.78 | E130: per MWh
A135: auction results and rates | B135: Specific BGS-FP Auction >> | C135: remaining portion of 36 month bid - 2018 auction | D135: remaining portion of 36 month bid - 2019 auction | E135: 36 month bid - 2020 auction
B136: Winning Bid - in $/MWh | C136: 91.77 | D136: 98.04 | E136: 98.04
B137: # of Tranches for Bid | C137: 29 | D137: 28 | E137: 28
B138: Use Estimated amount in cell e136 | E138: Yes
B139: Payment Factors
B140: Summer | C140: 1 | D140: 1 | E140: 1
B141: Winter | C141: 1 | D141: 1 | E141: 1

Sheet bid_factors
B2: =Input!B7 -> Development of BGS-RSCP Cost and Bid Factors for 2020/2021 BGS Filing
B3: Adjusted to Billing Time Periods
E4: =+Input!E9 -> Based on average of year 2016,2017 & 2018 Load Profile Information
A5: Table #1 | B5: % Usage During PJM On-Peak Period | E5: On-Peak periods defined as the 16 hr PJM Trading period, adj for NERC holidays | O5: % usage during Off-Peak period
C6: Profile Meter Data | D6: Profile Meter Data | E6: Profile Meter Data | F6: Profile Meter Data | G6: Profile Meter Data | H6: Profile Meter Data | I6: --- Other Analysis --- | K6: Profile Meter Data | L6: Profile Meter Data | O6: Profile Meter Data | P6: Profile Meter Data | Q6: Profile Meter Data | R6: Profile Meter Data | S6: Profile Meter Data | T6: Profile Meter Data | U6: -- Other Analysis -- | W6: Profile Meter Data | X6: Profile Meter Data
B7: (data rounded to nearest .01%) | C7: RS | D7: RHS | E7: RLM | F7: WH | G7: WHS | H7: HS | I7: PSAL | J7: BPL | K7: GLP | L7: LPL-S | O7: =+C7 -> RS | P7: =+D7 -> RHS | Q7: RLM | R7: WH | S7: WHS | T7: HS | U7: PSAL | V7: BPL | W7: GLP | X7: LPL-S
B9: January | C9: =Input!C14 -> 0.4687 | D9: =Input!D14 -> 0.467 | E9: =Input!E14 -> 0.4787 | F9: =Input!F14 -> 0.4687 | G9: =Input!G14 -> 0.4687 | H9: =Input!H14 -> 0.458 | I9: =Input!I14 -> 0.3 | J9: =Input!J14 -> 0.3 | K9: =Input!K14 -> 0.546 | L9: =Input!L14 -> 0.5243 | O9: =1-C9 -> 0.5313 | P9: 0.533 | Q9: 0.5213 | R9: 0.5313 | S9: 0.5313 | T9: 0.542 | U9: 0.7 | V9: 0.7 | W9: 0.454 | X9: 0.4757
B10: February | C10: =Input!C15 -> 0.4987 | D10: =Input!D15 -> 0.4907 | E10: =Input!E15 -> 0.5067 | F10: =Input!F15 -> 0.4987 | G10: =Input!G15 -> 0.4987 | H10: =Input!H15 -> 0.478 | I10: =Input!I15 -> 0.2973 | J10: =Input!J15 -> 0.2973 | K10: =Input!K15 -> 0.5697 | L10: =Input!L15 -> 0.5503 | O10: =1-C10 -> 0.5013 | P10: =1-D10 -> 0.5093 | Q10: =1-E10 -> 0.4933 | R10: =1-F10 -> 0.5013 | S10: =1-G10 -> 0.5013 | T10: =1-H10 -> 0.522 | U10: =1-I10 -> 0.7027 | V10: =1-J10 -> 0.7027 | W10: =1-K10 -> 0.4303 | X10: =1-L10 -> 0.4497
B11: March | C11: =Input!C16 -> 0.5043 | D11: =Input!D16 -> 0.4957 | E11: =Input!E16 -> 0.514 | F11: =Input!F16 -> 0.5043 | G11: =Input!G16 -> 0.5043 | H11: =Input!H16 -> 0.4863 | I11: =Input!I16 -> 0.264 | J11: =Input!J16 -> 0.264 | K11: =Input!K16 -> 0.58 | L11: =Input!L16 -> 0.56 | O11: 0.4957 | P11: 0.5043 | Q11: 0.486 | R11: 0.4957 | S11: 0.4957 | T11: 0.5137 | U11: 0.736 | V11: 0.736 | W11: 0.42 | X11: 0.44
B12: April | C12: =Input!C17 -> 0.4763 | D12: =Input!D17 -> 0.4813 | E12: =Input!E17 -> 0.4903 | F12: =Input!F17 -> 0.4763 | G12: =Input!G17 -> 0.4763 | H12: =Input!H17 -> 0.4927 | I12: =Input!I17 -> 0.219 | J12: =Input!J17 -> 0.219 | K12: =Input!K17 -> 0.566 | L12: =Input!L17 -> 0.5433 | O12: 0.5237 | P12: 0.5187 | Q12: 0.5097 | R12: 0.5237 | S12: 0.5237 | T12: 0.5073 | U12: 0.781 | V12: 0.781 | W12: 0.434 | X12: 0.4567
B13: May | C13: =Input!C18 -> 0.4977 | D13: =Input!D18 -> 0.5087 | E13: =Input!E18 -> 0.5173 | F13: =Input!F18 -> 0.4977 | G13: =Input!G18 -> 0.4977 | H13: =Input!H18 -> 0.5857 | I13: =Input!I18 -> 0.212 | J13: =Input!J18 -> 0.212 | K13: =Input!K18 -> 0.589 | L13: =Input!L18 -> 0.5643 | O13: 0.5023 | P13: 0.4913 | Q13: 0.4827 | R13: 0.5023 | S13: 0.5023 | T13: 0.4143 | U13: 0.788 | V13: 0.788 | W13: 0.411 | X13: 0.4357
B14: June | C14: =Input!C19 -> 0.523 | D14: =Input!D19 -> 0.53 | E14: =Input!E19 -> 0.5437 | F14: =Input!F19 -> 0.523 | G14: =Input!G19 -> 0.523 | H14: =Input!H19 -> 0.6283 | I14: =Input!I19 -> 0.2037 | J14: =Input!J19 -> 0.2037 | K14: =Input!K19 -> 0.605 | L14: =Input!L19 -> 0.577 | O14: 0.477 | P14: 0.47 | Q14: 0.4563 | R14: 0.477 | S14: 0.477 | T14: 0.3717 | U14: 0.7963 | V14: 0.7963 | W14: 0.395 | X14: 0.423
B15: July | C15: =Input!C20 -> 0.4883 | D15: =Input!D20 -> 0.4973 | E15: =Input!E20 -> 0.5073 | F15: =Input!F20 -> 0.4883 | G15: =Input!G20 -> 0.4883 | H15: =Input!H20 -> 0.5833 | I15: =Input!I20 -> 0.183 | J15: =Input!J20 -> 0.183 | K15: =Input!K20 -> 0.562 | L15: =Input!L20 -> 0.5287 | O15: 0.5117 | P15: 0.5027 | Q15: 0.4927 | R15: 0.5117 | S15: 0.5117 | T15: 0.4167 | U15: 0.817 | V15: 0.817 | W15: 0.438 | X15: 0.4713
B16: August | C16: =Input!C21 -> 0.5443 | D16: =Input!D21 -> 0.5537 | E16: =Input!E21 -> 0.5637 | F16: =Input!F21 -> 0.5443 | G16: =Input!G21 -> 0.5443 | H16: =Input!H21 -> 0.6393 | I16: =Input!I21 -> 0.2253 | J16: =Input!J21 -> 0.2253 | K16: =Input!K21 -> 0.618 | L16: =Input!L21 -> 0.58 | O16: 0.4557 | P16: 0.4463 | Q16: 0.4363 | R16: 0.4557 | S16: 0.4557 | T16: 0.3607 | U16: 0.7747 | V16: 0.7747 | W16: 0.382 | X16: 0.42
B17: September | C17: =Input!C22 -> 0.487 | D17: =Input!D22 -> 0.4963 | E17: =Input!E22 -> 0.5047 | F17: =Input!F22 -> 0.487 | G17: =Input!G22 -> 0.487 | H17: =Input!H22 -> 0.595 | I17: =Input!I22 -> 0.2267 | J17: =Input!J22 -> 0.2267 | K17: =Input!K22 -> 0.5707 | L17: =Input!L22 -> 0.5417 | O17: 0.513 | P17: 0.5037 | Q17: 0.4953 | R17: 0.513 | S17: 0.513 | T17: 0.405 | U17: 0.7733 | V17: 0.7733 | W17: 0.4293 | X17: 0.4583
B18: October | C18: =Input!C23 -> 0.4993 | D18: =Input!D23 -> 0.5177 | E18: =Input!E23 -> 0.5183 | F18: =Input!F23 -> 0.4993 | G18: =Input!G23 -> 0.4993 | H18: =Input!H23 -> 0.5717 | I18: =Input!I23 -> 0.2693 | J18: =Input!J23 -> 0.2693 | K18: =Input!K23 -> 0.588 | L18: =Input!L23 -> 0.5647 | O18: 0.5007 | P18: 0.4823 | Q18: 0.4817 | R18: 0.5007 | S18: 0.5007 | T18: 0.4283 | U18: 0.7307 | V18: 0.7307 | W18: 0.412 | X18: 0.4353
B19: November | C19: =Input!C24 -> 0.482 | D19: =Input!D24 -> 0.4827 | E19: =Input!E24 -> 0.5017 | F19: =Input!F24 -> 0.482 | G19: =Input!G24 -> 0.482 | H19: =Input!H24 -> 0.489 | I19: =Input!I24 -> 0.31 | J19: =Input!J24 -> 0.31 | K19: =Input!K24 -> 0.5647 | L19: =Input!L24 -> 0.542 | O19: 0.518 | P19: 0.5173 | Q19: 0.4983 | R19: 0.518 | S19: 0.518 | T19: 0.511 | U19: 0.69 | V19: 0.69 | W19: 0.4353 | X19: 0.458
B20: December | C20: =Input!C25 -> 0.4547 | D20: =Input!D25 -> 0.4523 | E20: =Input!E25 -> 0.4683 | F20: =Input!F25 -> 0.4547 | G20: =Input!G25 -> 0.4547 | H20: =Input!H25 -> 0.4543 | I20: =Input!I25 -> 0.2987 | J20: =Input!J25 -> 0.2987 | K20: =Input!K25 -> 0.5263 | L20: =Input!L25 -> 0.5033 | O20: 0.5453 | P20: 0.5477 | Q20: 0.5317 | R20: 0.5453 | S20: 0.5453 | T20: 0.5457 | U20: 0.7013 | V20: 0.7013 | W20: 0.4737 | X20: 0.4967
E22: =+Input!E9 -> Based on average of year 2016,2017 & 2018 Load Profile Information
A23: Table #2 | B23: % Usage During PSE&G On-Peak Billing Period | E23: =Input!E28 -> On-Peak periods as defined in specified rate schedule (average of %s for 2016, 2017 & 2018)
C24: N/A | D24: N/A | E24: Profile Meter Data | F24: N/A | G24: N/A | H24: N/A | I24: N/A | J24: N/A | K24: N/A | L24: Profile Meter Data | O24: N/A | P24: N/A | Q24: Actual Billed Sales | R24: N/A | S24: N/A | T24: N/A | U24: N/A | V24: N/A | W24: N/A | X24: Actual Billed Sales
B25: (data rounded to nearest .01%) | C25: =+C7 -> RS | D25: =+D7 -> RHS | E25: RLM | F25: WH | G25: WHS | H25: HS | I25: PSAL | J25: BPL | K25: GLP | L25: LPL-S | O25: =+C7 -> RS | P25: =+D7 -> RHS | Q25: RLM | R25: WH | S25: WHS | T25: HS | U25: PSAL | V25: BPL | W25: GLP | X25: LPL-S
B27: January | C27: 0 | D27: 0 | E27: =Input!C32 -> 0.427 | F27: 0 | G27: 0 | H27: 0 | I27: 0 | J27: 0 | K27: 0 | L27: =Input!D32 -> 0.4783 | Q27: =1-E27 -> 0.573 | X27: =1-L27 -> 0.5217
B28: February | C28: 0 | D28: 0 | E28: =Input!C33 -> 0.4232 | F28: 0 | G28: 0 | H28: 0 | I28: 0 | J28: 0 | K28: 0 | L28: =Input!D33 -> 0.4826 | Q28: 0.5768 | X28: 0.5174
B29: March | C29: 0 | D29: 0 | E29: =Input!C34 -> 0.4185 | F29: 0 | G29: 0 | H29: 0 | I29: 0 | J29: 0 | K29: 0 | L29: =Input!D34 -> 0.4811 | Q29: 0.5815 | X29: 0.5189
B30: April | C30: 0 | D30: 0 | E30: =Input!C35 -> 0.4193 | F30: 0 | G30: 0 | H30: 0 | I30: 0 | J30: 0 | K30: 0 | L30: =Input!D35 -> 0.4894 | Q30: 0.5807 | X30: 0.5106
B31: May | C31: 0 | D31: 0 | E31: =Input!C36 -> 0.4437 | F31: 0 | G31: 0 | H31: 0 | I31: 0 | J31: 0 | K31: 0 | L31: =Input!D36 -> 0.5014 | Q31: 0.5563 | X31: 0.4986
B32: June | C32: 0 | D32: 0 | E32: =Input!C37 -> 0.46 | F32: 0 | G32: 0 | H32: 0 | I32: 0 | J32: 0 | K32: 0 | L32: =Input!D37 -> 0.5073 | Q32: 0.54 | X32: 0.4927
B33: July | C33: 0 | D33: 0 | E33: =Input!C38 -> 0.4865 | F33: 0 | G33: 0 | H33: 0 | I33: 0 | J33: 0 | K33: 0 | L33: =Input!D38 -> 0.5064 | Q33: 0.5135 | X33: 0.4936
B34: August | C34: 0 | D34: 0 | E34: =Input!C39 -> 0.4862 | F34: 0 | G34: 0 | H34: 0 | I34: 0 | J34: 0 | K34: 0 | L34: =Input!D39 -> 0.4994 | Q34: 0.5138 | X34: 0.5006
B35: September | C35: 0 | D35: 0 | E35: =Input!C40 -> 0.4875 | F35: 0 | G35: 0 | H35: 0 | I35: 0 | J35: 0 | K35: 0 | L35: =Input!D40 -> 0.5078 | Q35: 0.5125 | X35: 0.4922
B36: October | C36: 0 | D36: 0 | E36: =Input!C41 -> 0.4618 | F36: 0 | G36: 0 | H36: 0 | I36: 0 | J36: 0 | K36: 0 | L36: =Input!D41 -> 0.5062 | Q36: 0.5382 | X36: 0.4938
B37: November | C37: 0 | D37: 0 | E37: =Input!C42 -> 0.4361 | F37: 0 | G37: 0 | H37: 0 | I37: 0 | J37: 0 | K37: 0 | L37: =Input!D42 -> 0.4968 | Q37: 0.5639 | X37: 0.5032
B38: December | C38: 0 | D38: 0 | E38: =Input!C43 -> 0.4285 | F38: 0 | G38: 0 | H38: 0 | I38: 0 | J38: 0 | K38: 0 | L38: =Input!D43 -> 0.4853 | Q38: 0.5715 | X38: 0.5147
A41: Table #3 | B41: Class Usage @ customer | O41: Usage by season - PSE&G periods
B42: =Input!B47 -> Calendar month sales forecasted for 2020, less % for LPL-Sec > 500 kW Peak Load Share | L42: < 500 kW | AB42: Total | AD42: LPL-S > 500 kW PLS
B43: in MWh | C43: =+C7 -> RS | D43: =+D7 -> RHS | E43: RLM | F43: WH | G43: WHS | H43: HS | I43: PSAL | J43: BPL | K43: GLP | L43: LPL-S | O43: =+C7 -> RS | P43: =+D7 -> RHS | Q43: RLM | R43: WH | S43: WHS | T43: HS | U43: PSAL | V43: BPL | W43: GLP | X43: LPL-S | Z43: % | AB43: LPL-S | AD43: % of | AE43: % of | AF43: % of
AD44: kWh | AE44: Gen Obl | AF44: Trans Obl
B45: January | C45: =Input!C50 -> 1103241.022 | D45: =Input!D50 -> 17093.91401 | E45: =Input!E50 -> 15933.36508 | F45: =Input!F50 -> 94 | G45: =Input!G50 -> 2 | H45: =Input!H50 -> 2155.435576 | I45: =Input!I50 -> 16719 | J45: =Input!J50 -> 31492 | K45: =Input!K50 -> 561707.3742 | L45: =AB45*$M$45 -> 425775.4507 | M45: =(1-AD45) -> 0.63223557 | N45: winter MWh = | O45: =SUM(C45:C49,C54:C56) -> 7016264.243 | P45: =SUM(D45:D49,D54:D56) -> 83784.19958 | Q45: 101616.4324 | R45: 739 | S45: 13 | T45: 10055.56811 | U45: 110832 | V45: 210347 | W45: 4097966.889 | X45: 3139975.82 | Y45: =SUM(O45:X45) -> 14771594.15 | Z45: =+Y45/(Y45+Y49) -> 0.6017860044 | AB45: =Input!L50 -> 673444.3155 | AD45: =Input!C66 -> 0.36776443 | AE45: =Input!D66 -> 0.3575901305 | AF45: =AE45 -> 0.3575901305
B46: February | C46: =Input!C51 -> 884939.9685 | D46: =Input!D51 -> 14489.69439 | E46: =Input!E51 -> 12532.01013 | F46: =Input!F51 -> 88 | G46: =Input!G51 -> 2 | H46: =Input!H51 -> 2053.812425 | I46: =Input!I51 -> 13249 | J46: =Input!J51 -> 27940 | K46: =Input!K51 -> 500731.3468 | L46: =AB46*$M$45 -> 373602.521 | N46: on-peak | Q46: =SUMPRODUCT(E27:E31,E45:E49)+SUMPRODUCT(E36:E38,E54:E56) -> 43875.93908 | X46: =SUMPRODUCT(L27:L31,L45:L49)+SUMPRODUCT(L36:L38,L54:L56) -> 1538540.597 | AB46: =Input!L51 -> 590922.9704
B47: March | C47: =Input!C52 -> 900474.2035 | D47: =Input!D52 -> 12286.79995 | E47: =Input!E52 -> 13347.07697 | F47: =Input!F52 -> 165 | G47: =Input!G52 -> 2 | H47: =Input!H52 -> 1461.153039 | I47: =Input!I52 -> 13900 | J47: =Input!J52 -> 27825 | K47: =Input!K52 -> 543590.6709 | L47: 412033.3033 | N47: off-peak | O47: =+O45-O46 -> 7016264.243 | P47: =+P45-P46 -> 83784.19958 | Q47: =+Q45-Q46 -> 57740.49332 | R47: =+R45-R46 -> 739 | X47: =+X45-X46 -> 1601435.223 | AB47: =Input!L52 -> 651708.5131
B48: April | C48: =Input!C53 -> 737564.8596 | D48: =Input!D53 -> 7198.465331 | E48: =Input!E53 -> 11110.64796 | F48: =Input!F53 -> 70 | G48: =Input!G53 -> 2 | H48: =Input!H53 -> 882.1572701 | I48: =Input!I53 -> 11672 | J48: =Input!J53 -> 25198 | K48: =Input!K53 -> 482431.3892 | L48: 362792.3561 | AB48: =Input!L53 -> 573824.6523
B49: May | C49: =Input!C54 -> 808596.1836 | D49: =Input!D54 -> 5010.217799 | E49: =Input!E54 -> 13150.6983 | F49: =Input!F54 -> 104 | G49: =Input!G54 -> 2 | H49: =Input!H54 -> 405.6386286 | I49: =Input!I54 -> 10104 | J49: =Input!J54 -> 19612 | K49: =Input!K54 -> 489186.3244 | L49: 389220.8856 | N49: summer MWh = | O49: =SUM(C50:C53) -> 5378288.987 | P49: =+SUM(D50:D53) -> 26172.06542 | Q49: 89216.9302 | R49: 259 | S49: 4 | T49: 2604.626983 | U49: 42257 | V49: 74265 | W49: 2392035.128 | X49: 1769560.492 | Y49: =SUM(O49:X49) -> 9774663.23 | Z49: =1-Z45 -> 0.3982139956 | AB49: =Input!L54 -> 615626.3647
B50: June | C50: =Input!C55 -> 1213518.816 | D50: =Input!D55 -> 6546.189851 | E50: =Input!E55 -> 20680.77194 | F50: =Input!F55 -> 74 | G50: =Input!G55 -> 1 | H50: =Input!H55 -> 649.0218057 | I50: =Input!I55 -> 9635 | J50: =Input!J55 -> 18056 | K50: =Input!K55 -> 569919.3045 | L50: 424358.1161 | N50: on-peak | Q50: =+SUMPRODUCT(E32:E35,E50:E53) -> 42865.16287 | X50: =+SUMPRODUCT(L32:L35,L50:L53) -> 893735.1441 | AB50: =Input!L55 -> 671202.5331
B51: July | C51: =Input!C56 -> 1621529.346 | D51: =Input!D56 -> 7259.98233 | E51: =Input!E56 -> 26953.45006 | F51: =Input!F56 -> 59 | G51: =Input!G56 -> 1 | H51: =Input!H56 -> 690.0126566 | I51: =Input!I56 -> 9762 | J51: =Input!J56 -> 19121 | K51: =Input!K56 -> 639726.0537 | L51: 464545.5711 | N51: off-peak | Q51: =+Q49-Q50 -> 46351.76733 | X51: =+X49-X50 -> 875825.348 | AB51: =Input!L56 -> 734766.5857
B52: August | C52: =Input!C57 -> 1506520.127 | D52: =Input!D57 -> 6941.656272 | E52: =Input!E57 -> 24935.32551 | F52: =Input!F57 -> 63 | G52: =Input!G57 -> 1 | H52: =Input!H57 -> 690.8666327 | I52: =Input!I57 -> 10865 | J52: =Input!J57 -> 17559 | K52: =Input!K57 -> 646706.1534 | L52: 474420.3539 | AB52: =Input!L57 -> 750385.4203
B53: September | C53: =Input!C58 -> 1036720.698 | D53: =Input!D58 -> 5424.236966 | E53: =Input!E58 -> 16647.3827 | F53: =Input!F58 -> 63 | G53: =Input!G58 -> 1 | H53: =Input!H58 -> 574.7258885 | I53: =Input!I58 -> 11995 | J53: =Input!J58 -> 19529 | K53: =Input!K58 -> 535683.6166 | L53: 406236.4509 | N53: Block 1 | O53: =+O49*C163 -> 3474374.686 | P53: =+P49*D163 -> 17299.73524 | AB53: =Input!L58 -> 642539.6959
B54: October | C54: =Input!C59 -> 763663.1091 | D54: =Input!D59 -> 6421.202933 | E54: =Input!E59 -> 11329.90571 | F54: =Input!F59 -> 65 | G54: =Input!G59 -> 1 | H54: =Input!H59 -> 706.2382018 | I54: =Input!I59 -> 14117 | J54: =Input!J59 -> 20385 | K54: =Input!K59 -> 518851.3372 | L54: 398425.8006 | N54: Block 2 | O54: =+O49-O53 -> 1903914.301 | P54: =+P49-P53 -> 8872.330177 | AB54: =Input!L59 -> 630185.6768
B55: November | C55: =Input!C60 -> 815550.2384 | D55: =Input!D60 -> 8801.813144 | E55: =Input!E60 -> 10806.547 | F55: =Input!F60 -> 77 | G55: =Input!G60 -> 1 | H55: =Input!H60 -> 918.0242647 | I55: =Input!I60 -> 14980 | J55: =Input!J60 -> 21877 | K55: =Input!K60 -> 478026.7113 | L55: 378175.8265 | AB55: =Input!L60 -> 598156.517
B56: December | C56: =Input!C61 -> 1002234.658 | D56: =Input!D61 -> 12482.09201 | E56: =Input!E61 -> 13406.18124 | F56: =Input!F61 -> 76 | G56: =Input!G61 -> 1 | H56: =Input!H61 -> 1473.108704 | I56: =Input!I61 -> 16091 | J56: =Input!J61 -> 36018 | K56: =Input!K61 -> 523441.7347 | L56: 399949.6765 | AB56: =Input!L61 -> 632595.9744
B57: Total | C57: =SUM(C45:C56) -> 12394553.23 | D57: =SUM(D45:D56) -> 109956.265 | E57: =SUM(E45:E56) -> 190833.3626 | F57: 998 | G57: 17 | H57: =SUM(H45:H56) -> 12660.19509 | I57: =SUM(I45:I56) -> 153089 | J57: =SUM(J45:J56) -> 284612 | K57: 6490002.017 | L57: =SUM(L45:L56) -> 4909536.312 | O57: Usage by season/period - PJM periods | AB57: =SUM(AB45:AB56) -> 7765359.219
O58: in MWhs
Y59: Total | Z59: %
A60: Table #4 | B60: Forwards Prices - Energy Only @ bulk system | G60: Table #5 | H60: Zone to Western Hub Basis Differential | N60: Winter
B61: in $/MWh, not including PJM losses | D61: Off/On Pk | E61: Resulting | N61: on-peak | O61: =SUMPRODUCT(C9:C13,C45:C49)+SUMPRODUCT(C18:C20,C54:C56) -> 3396366.538 | P61: =SUMPRODUCT(D9:D13,D45:D49)+SUMPRODUCT(D18:D20,D54:D56) -> 40415.37896 | Q61: 50660.12532 | R61: 360.3804 | S61: 6.3274 | T61: 4873.595517 | U61: 30574.3335 | V61: 57806.1951 | W61: 2318942.03 | X61: 1707565.638 | Y61: =SUM(O61:X61) -> 7607570.542 | Z61: =+Y61/(Y61+Y62) -> 0.5150135093
C62: On-Peak | D62: LMP ratio | E62: Off-Peak | H62: On-Peak | I62: Off-Peak | N62: off-peak | O62: =+O45-O61 -> 3619897.705 | P62: =+P45-P61 -> 43368.82062 | Q62: 50956.30707 | R62: 378.6196 | S62: 6.6726 | T62: 5181.972592 | U62: 80257.6665 | V62: 152540.8049 | W62: 1779024.859 | X62: 1432410.182 | Y62: =SUM(O62:X62) -> 7164023.609 | Z62: =1-Z61 -> 0.4849864907
B63: January | C63: =Input!C73 -> 47.3 | D63: =Input!F74 -> 0.7876 | E63: =ROUND(+C63*D63,3) -> 37.253 | H63: =Input!F81 -> 0.97 | I63: =Input!G81 -> 0.98 | J63: NYMEX Forwards (November 15, 2019) from NERA
B64: February | C64: =Input!C74 -> 44.65 | D64: =+$D$63 -> 0.7876 | E64: =ROUND(+C64*D64,3) -> 35.166 | H64: =+$H$63 -> 0.97 | I64: =+$I$63 -> 0.98 | N64: Summer
B65: March | C65: =Input!C75 -> 33.7 | D65: =+$D$63 -> 0.7876 | E65: =ROUND(+C65*D65,3) -> 26.542 | H65: =+$H$63 -> 0.97 | I65: =+$I$63 -> 0.98 | J65: Congestion Factors & On/Off Peak Ratios | N65: on-peak | O65: =SUMPRODUCT(C14:C17,C50:C53) -> 2751345.006 | P65: =SUMPRODUCT(D14:D17,D50:D53) -> 13615.51372 | Q65: 47375.59795 | R65: 132.4836 | S65: 2.0426 | T65: 1593.897725 | U65: 8916.2465 | V65: 15560.4172 | W65: 1409706.264 | X65: 985681.9672 | Y65: 5233929.436 | Z65: =+Y65/(Y65+Y66) -> 0.5354587993
B66: April | C66: =Input!C76 -> 29.5 | D66: =+$D$63 -> 0.7876 | E66: 23.234 | H66: =+$H$63 -> 0.97 | I66: =+$I$63 -> 0.98 | J66: Summer Averages for Aug 2016-Jul 2019 | N66: off-peak | O66: =+O49-O65 -> 2626943.982 | P66: =+P49-P65 -> 12556.5517 | Q66: 41841.33225 | R66: 126.5164 | S66: 1.9574 | T66: 1010.729258 | U66: 33340.7535 | V66: 58704.5828 | W66: 982328.864 | X66: 783878.5249 | Y66: 4540733.794 | Z66: =1-Z65 -> 0.4645412007
B67: May | C67: =Input!C77 -> 29.25 | D67: =+$D$63 -> 0.7876 | E67: 23.037 | H67: =+$H$63 -> 0.97 | I67: =+$I$63 -> 0.98 | J67: Winter Averages for Oct 2016-May 2019
B68: June | C68: =Input!C78 -> 29.3 | D68: =Input!F73 -> 0.6684 | E68: 19.584 | H68: =Input!F80 -> 0.94 | I68: =Input!G80 -> 0.9 | N68: Total on-peak | O68: =+O61+O65 -> 6147711.543 | P68: =+P61+P65 -> 54030.89268 | Q68: 98035.72328 | R68: 492.864 | S68: 8.37 | T68: 6467.493242 | U68: 39490.58 | V68: 73366.6123 | W68: 3728648.294 | X68: 2693247.606 | Y68: 12841499.98 | Z68: =+Y68/(Y68+Y69) -> 0.5231551099
B69: July | C69: =Input!C79 -> 34.45 | D69: =+$D$68 -> 0.6684 | E69: 23.026 | H69: =+$H$68 -> 0.94 | I69: =+$I$68 -> 0.9 | N69: Total off-peak | O69: =+O62+O66 -> 6246841.687 | P69: =+P62+P66 -> 55925.37232 | Q69: 92797.63932 | R69: 505.136 | S69: 8.63 | T69: 6192.70185 | U69: 113598.42 | V69: 211245.3877 | W69: 2761353.723 | X69: 2216288.707 | Y69: 11704757.4 | Z69: =1-Z68 -> 0.4768448901
B70: August | C70: =Input!C80 -> 31.95 | D70: =+$D$68 -> 0.6684 | E70: 21.355 | H70: =+$H$68 -> 0.94 | I70: =+$I$68 -> 0.9
B71: September | C71: =Input!C81 -> 31.45 | D71: =+$D$68 -> 0.6684 | E71: 21.021 | H71: =+$H$68 -> 0.94 | I71: =+$I$68 -> 0.9
B72: October | C72: =Input!C82 -> 29.35 | D72: =+$D$63 -> 0.7876 | E72: 23.116 | H72: =+$H$63 -> 0.97 | I72: =+$I$63 -> 0.98
B73: November | C73: =Input!C83 -> 29.8 | D73: =+$D$63 -> 0.7876 | E73: 23.47 | H73: =+$H$63 -> 0.97 | I73: =+$I$63 -> 0.98
B74: December | C74: =Input!C84 -> 33.4 | D74: =+$D$63 -> 0.7876 | E74: 26.306 | H74: =+$H$63 -> 0.97 | I74: =+$I$63 -> 0.98
A77: Table #6 | B77: Losses | C77: =+C7 -> RS | D77: =+D7 -> RHS | E77: RLM | F77: WH | G77: WHS | H77: HS | I77: PSAL | J77: BPL | K77: GLP | L77: LPL-S | P77: Loss Type | Q77: Percentage | R77: Source
B78: from meter to bulk system (includes Delivery & PJM EHV losses) | P78: Delivery Losses | Q78: =Input!C89 -> 0.058327 | R78: Tariff (Result of 2018 Loss Study)
B79: Loss Factors = | C79: =1-((1-$Q$78)*(1-$Q$79)) -> 0.06262102888 | D79: =+$C79 -> 0.06262102888 | E79: =+$C79 -> 0.06262102888 | F79: 0.06262102888 | G79: 0.06262102888 | H79: 0.06262102888 | I79: 0.06262102888 | J79: 0.06262102888 | K79: 0.06262102888 | L79: 0.06262102888 | P79: EHV Losses | Q79: =Input!C90 -> 0.00456 | R79: PJM
B80: Expansion Factor = | C80: =ROUND(1/(1-C79),6) -> 1.066804 | D80: =ROUND(1/(1-D79),6) -> 1.066804 | E80: 1.066804 | F80: 1.066804 | G80: 1.066804 | H80: 1.066804 | I80: 1.066804 | J80: 1.066804 | K80: 1.066804 | L80: 1.066804 | P80: Marginal Loss Deration Factor | Q80: =+Input!C91 -> 0.010525 | R80: NERA
B81: 1 / Expansion Factor = | C81: =1/C80 -> 0.9373793124 | D81: =1/D80 -> 0.9373793124 | E81: 0.9373793124 | F81: 0.9373793124 | G81: 0.9373793124 | H81: 0.9373793124 | I81: 0.9373793124 | J81: 0.9373793124 | K81: 0.9373793124 | L81: 0.9373793124 | P81: Marginal Loss Factor | Q81: =ROUND(1-((1-Q80)/(1-Q79)),7) -> 0.0059923
B83: from meter to transmission node (includes Delivery less mean hourly PJM marginal losses)
B84: Loss Factors = | C84: =1-((1-$Q$78)/((1-$Q$80)/(1-$Q$79))) -> 0.05265017194 | D84: =+$C84 -> 0.05265017194 | E84: =+$C84 -> 0.05265017194 | F84: 0.05265017194 | G84: 0.05265017194 | H84: 0.05265017194 | I84: 0.05265017194 | J84: 0.05265017194 | K84: 0.05265017194 | L84: 0.05265017194
B85: Expansion Factor = | C85: =ROUND(1/(1-C84),6) -> 1.055576 | D85: =+$C$85 -> 1.055576 | E85: =+$C$85 -> 1.055576 | F85: 1.055576 | G85: 1.055576 | H85: 1.055576 | I85: 1.055576 | J85: 1.055576 | K85: 1.055576 | L85: 1.055576
B86: 1 / Expansion Factor = | C86: =1/C85 -> 0.9473500724 | D86: =1/D85 -> 0.9473500724 | E86: 0.9473500724 | F86: 0.9473500724 | G86: 0.9473500724 | H86: 0.9473500724 | I86: 0.9473500724 | J86: 0.9473500724 | K86: 0.9473500724 | L86: 0.9473500724
A89: Table #7 | B89: Summary of Average BGS Energy Only Unit Costs @ customer - PJM Time Periods
B90: based on Forwards prices corrected for congestion & all losses - PJM time periods
B91: in $/MWh
C92: =+C7 -> RS | D92: =+D7 -> RHS | E92: RLM | F92: WH | G92: WHS | H92: HS | I92: PSAL | J92: BPL | K92: GLP | L92: LPL-S
B94: Summer - all hrs | C94: =(SUMPRODUCT(C14:C17,C50:C53,$C68:$C71,$H68:$H71)*C80+SUMPRODUCT(O14:O17,C50:C53,$E68:$E71,$I68:$I71)*C80)/SUM(C50:C53) -> 26.44601333 | D94: 26.43709975 | E94: 26.66058555 | F94: 26.14190668 | G94: 26.25311956 | H94: 27.4592926 | I94: 22.8114986 | J94: 22.82019732 | K94: 27.22866919 | L94: 26.83934085
B95: PJM on pk | C95: =(SUMPRODUCT(C14:C17,C50:C53,$C68:$C71,$H68:$H71)*C80)/SUMPRODUCT(C14:C17,C50:C53) -> 32.05578569 | D95: 31.92780408 | E95: 32.04325706 | F95: 31.69207544 | G95: 31.83867701 | H95: 31.8849394 | I95: 31.80375509 | J95: 31.8322957 | K95: 31.91998451 | L95: 31.89192824
B96: PJM off pk | C96: =(SUMPRODUCT(O14:O17,C50:C53,$E68:$E71,$I68:$I71)*C80)/SUMPRODUCT(O14:O17,C50:C53) -> 20.57058573 | D96: 20.4833346 | E96: 20.56595931 | F96: 20.32996185 | G96: 20.42443883 | H96: 20.4801453 | I96: 20.40671866 | J96: 20.43142282 | K96: 20.49632441 | L96: 20.48600406
B98: Winter - all hrs | C98: =(SUMPRODUCT(C9:C13,C45:C49,$C63:$C67,$H63:$H67)*C80+SUMPRODUCT(O9:O13,C45:C49,$E63:$E67,$I63:$I67)*C80+SUMPRODUCT(C18:C20,C54:C56,$C72:$C74,$H72:$H74)*C80+SUMPRODUCT(O18:O20,C54:C56,$E72:$E74,$I72:$I74)*C80)/SUM(C45:C49,C54:C56) -> 32.66982807 | D98: 34.18672119 | E98: 32.69122186 | F98: 32.32076362 | G98: 32.86847287 | H98: 34.7809761 | I98: 30.96155275 | J98: 31.22618095 | K98: 32.83647952 | L98: 32.5982865
B99: PJM on pk | C99: =(SUMPRODUCT(C9:C13,C45:C49,$C63:$C67,$H63:$H67)*C80+SUMPRODUCT(C18:C20,C54:C56,$C72:$C74,$H72:$H74)*C80)/(SUMPRODUCT(C9:C13,C45:C49)+SUMPRODUCT(C18:C20,C54:C56)) -> 36.47844608 | D99: 38.14509922 | E99: 36.33402904 | F99: 36.05886882 | G99: 36.68015675 | H99: 38.60654836 | I99: 36.73379804 | J99: 37.09623019 | K99: 35.94512354 | L99: 35.86874162
B100: PJM off pk | C100: =(SUMPRODUCT(O9:O13,C45:C49,$E63:$E67,$I63:$I67)*C80+SUMPRODUCT(O18:O20,C54:C56,$E72:$E74,$I72:$I74)*C80)/(SUMPRODUCT(O9:O13,C45:C49)+SUMPRODUCT(O18:O20,C54:C56)) -> 29.09639484 | D100: 30.49791099 | E100: 29.06958838 | F100: 28.76273375 | G100: 29.25398248 | H100: 31.18306207 | I100: 28.76260329 | J100: 29.0016928 | K100: 28.78439154 | L100: 28.69960102
B102: Annual | C102: =(C94*SUM(C50:C53)+C98*SUM(C45:C49,C54:C56))/C57 -> 29.96916806 | D102: 32.3421369 | E102: 29.87182565 | F102: 30.71723261 | G102: 31.31191915 | H102: 33.2746601 | I102: 28.71190165 | J102: 29.03277247 | K102: 30.76959583 | L102: 30.52257058
B104: System Total | C104: =SUMPRODUCT(C102:L102,C57:L57)/SUM(C57:L57) -> 30.28439774
A107: Table #8 | B107: Summary of Average BGS Energy Only Costs @ customer - PJM Time Periods
B108: based on Forwards prices corrected for congestion & all losses
B109: in $1000
C110: =+C7 -> RS | D110: =+D7 -> RHS | E110: RLM | F110: WH | G110: WHS | H110: HS | I110: PSAL | J110: BPL | K110: GLP | L110: LPL-S
B112: Summer - all hrs | C112: =SUM(C50:C53)*C94/1000 -> 142234.3022 | D112: 691.9135043 | E112: 2378.5756 | F112: 6.770753831 | G112: 0.1050124782 | H112: 71.52121445 | I112: 963.9454965 | J112: 1694.741954 | K112: 65131.9332 | L112: 47493.83721
B113: PJM on pk | C113: =SUMPRODUCT(C50:C53,C14:C17)*C95/1000 -> 88196.52586 | D113: 434.7134544 | E113: 1518.068464 | F113: 4.198680246 | G113: 0.06503368166 | H113: 50.82133238 | I113: 283.57012 | J113: 495.3238015 | K113: 44997.80212 | L113: 31435.29857
B114: PJM off pk | C114: =SUMPRODUCT(C50:C53,O14:O17)*C96/1000 -> 54037.77639 | D114: 257.2000499 | E114: 860.5071365 | F114: 2.572073585 | G114: 0.03997879656 | H114: 20.69988207 | I114: 680.3753765 | J114: 1199.418153 | K114: 20134.13108 | L114: 16058.53864
B116: Winter - all hrs | C116: =SUM(C45:C49,C54:C56)*C98/1000 -> 229220.1465 | D116: 2864.307071 | E116: 3321.965336 | F116: 23.88504432 | G116: 0.4272901473 | H116: 349.742474 | I116: 3431.530815 | J116: 6568.333483 | K116: 134562.8058 | L116: 102357.8314
B117: PJM on pk | C117: =(SUMPRODUCT(C45:C49,C9:C13)+SUMPRODUCT(C54:C56,C18:C20))*C99/1000 -> 123894.1736 | D117: 1541.64864 | E117: 1840.686465 | F117: 12.99490957 | G117: 0.2320900238 | H117: 188.152701 | I117: 1123.111392 | J117: 2144.39192 | K117: 83354.65775 | L117: 61248.23069
B118: PJM off pk | C118: =+(SUMPRODUCT(C45:C49,O9:O13)+SUMPRODUCT(C54:C56,O18:O20))*C100/1000 -> 105325.9729 | D118: 1322.658431 | E118: 1481.278872 | F118: 10.89013475 | G118: 0.1952001235 | H118: 161.589773 | I118: 2308.419423 | J118: 4423.941563 | K118: 51208.14808 | L118: 41109.60071
B120: Annual | C120: =+C112+C116 -> 371454.4488 | D120: =+D112+D116 -> 3556.220576 | E120: 5700.540937 | F120: 30.65579815 | G120: 0.5323026255 | H120: 421.2636885 | I120: 4395.476311 | J120: 8263.075438 | K120: 199694.739 | L120: 149851.6686
B122: System Total | C122: =SUM(C120:L120) -> 743368.6215
A125: Table #9 | B125: Summary of Average BGS Energy Only Unit Costs @ customer - PSE&G Time Periods | Q125: MWhs in PSE&G time periods | T125: MWhs in PJM time periods | W125: Difference in MWhs | Z125: Check on total $ recovered
B126: based on Forwards prices corrected for congestion & all losses - PSE&G billing time periods | W126: (PJM - PSE&G) | Z126: PSE&G time periods | AC126: PJM time periods (Table #8)
B127: in $/MWh
C128: =+C7 -> RS | D128: =+D7 -> RHS | E128: RLM | F128: WH | G128: WHS | H128: HS | I128: PSAL | J128: BPL | K128: GLP | L128: LPL-S | Q128: =+E128 -> RLM | R128: =+L128 -> LPL-S | T128: =+E128 -> RLM | U128: =+L128 -> LPL-S | W128: =+E128 -> RLM | X128: =+L128 -> LPL-S | Z128: =+E128 -> RLM | AA128: =+L128 -> LPL-S | AC128: =+E128 -> RLM | AD128: =+L128 -> LPL-S
B130: Summer - all hrs | C130: =+C112/SUM(C50:C53)*1000 -> 26.44601333 | D130: 26.43709975 | E130: 26.66058555 | F130: 26.14190668 | G130: 26.25311956 | H130: 27.4592926 | I130: 22.8114986 | J130: 22.82019732 | K130: 27.22866919 | L130: 26.83934085
B131: PSE&G On pk | E131: =+(E113*1000-W131*AVERAGE(E$95,E$96))/Q131 -> 32.64709947 | L131: =+(L113*1000-X131*AVERAGE(L$95,L$96))/R131 -> 32.47864485 | Q131: =SUMPRODUCT(E50:E53,E32:E35) -> 42865.16287 | R131: =SUMPRODUCT(L50:L53,L32:L35) -> 893735.1441 | T131: =SUMPRODUCT(E50:E53,E14:E17) -> 47375.59795 | U131: =SUMPRODUCT(L50:L53,L14:L17) -> 985681.9672 | W131: =+T131-Q131 -> 4510.435081 | X131: =+U131-R131 -> 91946.82314 | Z131: =+E131*Q131/1000 -> 1399.423236 | AA131: =+L131*R131/1000 -> 29027.30633
B132: PSE&G Off pk | E132: =+(E114*1000-W132*AVERAGE(E$95,E$96))/Q132 -> 21.12438037 | L132: =+(L114*1000-X132*AVERAGE(L$95,L$96))/R132 -> 21.08471846 | Q132: =SUMPRODUCT(E50:E53,Q32:Q35) -> 46351.76733 | R132: =SUMPRODUCT(L50:L53,X32:X35) -> 875825.348 | T132: =SUMPRODUCT(E50:E53,Q14:Q17) -> 41841.33225 | U132: =SUMPRODUCT(L50:L53,X14:X17) -> 783878.5249 | W132: =+T132-Q132 -> -4510.435081 | X132: =+U132-R132 -> -91946.82314 | Z132: =+E132*Q132/1000 -> 979.1523641 | AA132: =+L132*R132/1000 -> 18466.53088
Z133: =+Z132+Z131 -> 2378.5756 | AA133: =+AA132+AA131 -> 47493.83721 | AC133: =+E112 -> 2378.5756 | AD133: =+L112 -> 47493.83721
B134: Winter - all hrs | C134: =+C116/SUM(C45:C49,C54:C56)*1000 -> 32.66982807 | D134: 34.18672119 | E134: 32.69122186 | F134: 32.32076362 | G134: 32.86847287 | H134: 34.7809761 | I134: 30.96155275 | J134: 31.22618095 | K134: 32.83647952 | L134: 32.5982865
B135: PSE&G On pk | E135: =+(E117*1000-W135*AVERAGE(E$99,E$100))/Q135 -> 36.89565028 | L135: =+(L117*1000-X135*AVERAGE(L$99,L$100))/R135 -> 36.26254478 | Q135: =SUMPRODUCT(E45:E49,E27:E31)+SUMPRODUCT(E54:E56,E36:E38) -> 43875.93908 | R135: =SUMPRODUCT(L45:L49,L27:L31)+SUMPRODUCT(L54:L56,L36:L38) -> 1538540.597 | T135: =SUMPRODUCT(E45:E49,E9:E13)+SUMPRODUCT(E54:E56,E18:E20) -> 50660.12532 | U135: =SUMPRODUCT(L45:L49,L9:L13)+SUMPRODUCT(L54:L56,L18:L20) -> 1707565.638 | W135: =+T135-Q135 -> 6784.186241 | X135: =+U135-R135 -> 169025.0416 | Z135: =+E135*Q135/1000 -> 1618.831304 | AA135: =+L135*R135/1000 -> 55791.39729
B136: PSE&G Off pk | E136: =+(E118*1000-W136*AVERAGE(E$99,E$100))/Q136 -> 29.49635403 | L136: =+(L118*1000-X136*AVERAGE(L$99,L$100))/R136 -> 29.07793798 | Q136: =SUMPRODUCT(E45:E49,Q27:Q31)+SUMPRODUCT(E54:E56,Q36:Q38) -> 57740.49332 | R136: =SUMPRODUCT(L45:L49,X27:X31)+SUMPRODUCT(L54:L56,X36:X38) -> 1601435.223 | T136: =SUMPRODUCT(E45:E49,Q9:Q13)+SUMPRODUCT(E54:E56,Q18:Q20) -> 50956.30707 | U136: =SUMPRODUCT(L45:L49,X9:X13)+SUMPRODUCT(L54:L56,X18:X20) -> 1432410.182 | W136: =+T136-Q136 -> -6784.186241 | X136: =+U136-R136 -> -169025.0416 | Z136: =+E136*Q136/1000 -> 1703.134032 | AA136: =+L136*R136/1000 -> 46566.43411
Z137: =+Z136+Z135 -> 3321.965336 | AA137: =+AA136+AA135 -> 102357.8314 | AC137: =+E116 -> 3321.965336 | AD137: =+L116 -> 102357.8314
B138: Annual Average | C138: =(C130*SUM(C50:C53)+C134*SUM(C45:C49,C54:C56))/C57 -> 29.96916806 | D138: 32.3421369 | E138: 29.87182565 | F138: 30.71723261 | G138: 31.31191915 | H138: 33.2746601 | I138: 28.71190165 | J138: 29.03277247 | K138: 30.76959583 | L138: 30.52257058
B139: System Average | C139: =+C122/SUM(C57:L57)*1000 -> 30.28439774
A142: Table #10 | B142: Generation & Transmission Obligations and Costs and Other Adjustments | L142: Adj for PLS
B143: =Input!B97 -> Obligations - Peak Load shares eff 1/1/19, scaling factors eff 6/1/18, Transmission Loads eff 1/1/19; costs are market estimates | L143: > 500 kW
B144: in MW | C144: =+C7 -> RS | D144: =+D7 -> RHS | E144: RLM | F144: WH | G144: WHS | H144: HS | I144: PSAL | J144: BPL | K144: GLP | L144: LPL-S | AD144: RS | AE144: RHS | AF144: RLM | AG144: WH | AH144: WHS | AI144: HS | AJ144: PSAL | AK144: BPL | AL144: GLP | AM144: LPL-S
R145: NITS Rate Weighted Average Calculation | AC145: Generation Peak Load Share | AD145: =Input!C101 -> 3904.116948 | AE145: =Input!D101 -> 20.23385311 | AF145: =Input!E101 -> 67.95692497 | AG145: =Input!F101 -> 0 | AH145: =Input!G101 -> 0 | AI145: =Input!H101 -> 3.87050971 | AJ145: =Input!I101 -> 0 | AK145: =Input!J101 -> 0 | AL145: =Input!K101 -> 1646.416659 | AM145: =Input!L101 -> 1377.047694
T146: Tranches | U146: NITS Rate | AC146: Tranmsission Obligation | AD146: =Input!C102 -> 4225.806817 | AE146: =Input!D102 -> 21.90965839 | AF146: =Input!E102 -> 74.22140107 | AG146: =Input!F102 -> 0 | AH146: =Input!G102 -> 0 | AI146: =Input!H102 -> 4.255448493 | AJ146: =Input!I102 -> 0 | AK146: =Input!J102 -> 0 | AL146: =Input!K102 -> 1768.498131 | AM146: =Input!L102 -> 1406.973468
B147: Gen Obl - MW | C147: =ROUND(AD145*$AD$148*$AD$149,1) -> 4700.4 | D147: =ROUND(AE145*$AD$148*$AD$149,1) -> 24.4 | E147: 81.8 | F147: 0 | G147: 0 | H147: 4.7 | I147: 0 | J147: 0 | K147: 1982.2 | L147: =ROUND(AM145*$AD$148*$AD$149*(1-AE45),1) -> 1065.1 | R147: =Input!C108 -> 2018 | S147: NITS Rate | T147: =Input!D108 -> 29 | U147: =Input!E108 -> 101197 | V147: =U147/$T$150*T147 -> 34526.03529
R148: =Input!C109 -> 2019 | S148: NITS Rate | T148: =Input!D109 -> 28 | U148: =Input!E109 -> 104709.15 | V148: =U148/$T$150*T148 -> 34492.42588 | AC148: Final Zonal RPM Scaling Factor | AD148: =Input!C104 -> 1.105054399
B149: Trans Obl - MW | C149: =ROUND(AD146,1) -> 4225.8 | D149: =ROUND(AE146,1) -> 21.9 | E149: 74.2 | F149: 0 | G149: 0 | H149: 4.3 | I149: 0 | J149: 0 | K149: 1768.5 | L149: =ROUND(AM146*(1-AF45),1) -> 903.9 | R149: =Input!C110 -> 2020 | S149: NITS Rate | T149: =Input!D110 -> 28 | U149: =Input!E110 -> 138497.0843 | V149: =U149/$T$150*T149 -> 45622.56895 | X149: =+Input!B105 -> PJM June 1, -1 (through May 31, ) Forecast Pool Requirement | AD149: =Input!C105 -> 1.0895
T150: =SUM(T147:T149) -> 85 | V150: =ROUND(SUM(V147:V149),2) -> 114641.03
B151: # of Months and Days used in this analysis
D152: # of summer days = | E152: 122 | G152: # of summer months = | H152: 4
D153: # of winter days = | E153: 243 | G153: # of winter months = | H153: 8
G154: total # months = | H154: =+H152+H153 -> 12
B155: Transmission Cost | C155: year round = | D155: =V150 -> 114641.03 | E155: per MW-yr
D157: Base Capacity | E157: Capacity Proxy True Up | F157: Total Capacity
B158: Generation Capacity cost | C158: summer = | D158: =Input!E113 -> 174.13 | E158: =SUM(auction_results_and_rates!E13:E13)/SUM(auction_results_and_rates!C13:E13)*Input!E115 -> 0 | F158: =SUM(D158:E158) -> 174.13 | G158: $/MW/day
C159: winter = | D159: =Input!E114 -> 174.13 | E159: =E158 -> 0 | F159: =SUM(D159:E159) -> 174.13 | G159: $/MW/day | Q159: Resulting average generation capacity cost =
P160: annual >> | Q160: =(F158*E152+F159*E153)/1000 -> 63.55745 | R160: per kW/yr
C161: =+C7 -> RS | D161: =+D7 -> RHS
B162: % usage in Summer Blocks
B163: Block 1 (0-600 kWh/m) | C163: =ROUND(Q165/Q167,3) -> 0.646 | D163: =ROUND(R165/R167,3) -> 0.661 | F163: (based on W/N actuals used in settlement and final rate design of 2018 Rate Case, rounded to .1%) | P163: Blocking Percentages based on Annualized W/N Usage Used in 2018 Electric Rate Case Settlement
B164: Block 2 (>600 kWh/m) | C164: =1-C163 -> 0.354 | D164: =1-D163 -> 0.339 | Q164: RS | R164: RHS
P165: June - September (0-600) | Q165: 3528124 | R165: 19973
B166: Required summer inversion = | C166: =Input!C119 -> 0.8652 | D166: =Input!D119 -> 1.1569 | E166: ¢/kWh | F166: (same as 2003/2004 BGS blocking inversion) | P166: June - September (600+) | Q166: 1931618 | R166: 10227
P167: Total Summer Usage | Q167: =SUM(Q165:Q166) -> 5459742 | R167: =SUM(R165:R166) -> 30200
A168: Table #11 | B168: Ancillary Services & Renewable Power Cost
B169: Ancillary Services | D169: =+Input!D123 -> 2
B170: Renewable Power Cost | D170: =+Input!D124 -> 16.72
B171: Total AncillaryServices & Renewable Power Costs | D171: =SUM(D169:D170) -> 18.72 | E171: per MWh @ bulk system
A174: Table #12 | B174: Summary of Obligation Costs Expressed as $/MWh @ customer (for non-demand rates only)
C176: =+C7 -> RS | D176: RHS | E176: RLM | F176: WH | G176: WHS | H176: HS | I176: PSAL | J176: BPL
B178: Transmission Obl - all months | C178: =(+$D$155*C149*$H$154/12)/C57 -> 39.08572222 | D178: =(+$D$155*D149*$H$154/12)/D57 -> 22.8330651 | E178: =(+$D$155*E149*$H$154/12)/SUMPRODUCT(E27:E38,E45:E56) -> 98.06613283 | F178: =(+$D$155*F149*$H$154/12)/F57 -> 0 | G178: =(+$D$155*G149*$H$154/12)/G57 -> 0 | H178: =(+$D$155*H149*$H$154/12)/H57 -> 38.93750653 | I178: =(+$D$155*I149*$H$154/12)/I57 -> 0 | J178: =(+$D$155*J149*$H$154/12)/J57 -> 0
B180: Generation Obl -
B181: per annual MWh | C181: =((+$Q$160*C147*1000)/C57) -> 24.10296139 | D181: =((+$Q$160*D147*1000)/D57) -> 14.10380555 | E181: =(+$Q$160*E147*1000)/SUMPRODUCT(E45:E56,E27:E38) -> 59.93697674 | F181: =((+$Q$160*F147*1000)/F57) -> 0 | G181: =((+$Q$160*G147*1000)/G57) -> 0 | H181: =((+$Q$160*H147*1000)/H57) -> 23.5952142 | I181: =((+$Q$160*I147*1000)/I57) -> 0 | J181: =((+$Q$160*J147*1000)/J57) -> 0
B182: recovery per summer MWh | C182: =(C147*$F$158*$E$152)/SUM(C50:C53) -> 18.56624659 | D182: =(D147*$F$158*$E$152)/SUM(D50:D53) -> 19.80547487 | E182: =(E147*$F$158*$E$152)/SUMPRODUCT(E50:E53,E32:E35) -> 40.53986108 | F182: =(F147*$F$158*$E$152)/SUM(F50:F53) -> 0 | G182: =(G147*$F$158*$E$152)/SUM(G50:G53) -> 0 | H182: =(H147*$F$158*$E$152)/SUM(H50:H53) -> 38.33414252 | I182: =(I147*$F$158*$E$152)/SUM(I50:I53) -> 0 | J182: =(J147*$F$158*$E$152)/SUM(J50:J53) -> 0
B183: recovery per winter MWh | C183: =(C147*$F$159*$E$153)/SUM(C45:C49,C54:C56) -> 28.34710774 | D183: =(D147*$F$159*$E$153)/SUM(D45:D49,D54:D56) -> 12.32274822 | E183: =(E147*$F$159*$E$153)/(SUMPRODUCT(E45:E49,E27:E31)+SUMPRODUCT(E54:E56,E36:E38)) -> 78.8872383 | F183: =(F147*$F$159*$E$153)/SUM(F45:F49,F54:F56) -> 0 | G183: =(G147*$F$159*$E$153)/SUM(G45:G49,G54:G56) -> 0 | H183: =(H147*$F$159*$E$153)/SUM(H45:H49,H54:H56) -> 19.77748754 | I183: =(I147*$F$159*$E$153)/SUM(I45:I49,I54:I56) -> 0 | J183: =(J147*$F$159*$E$153)/SUM(J45:J49,J54:J56) -> 0
E184: For RLM, per
E185: on-peak kWh only
A187: Table #13 | B187: Summary of BGS Unit Costs @ customer
B189: NON-DEMAND RATES
B190: includes energy, G&T obligations, and Ancillary Services - adjusted to billing time periods
B191: in $/MWh
C192: =+C7 -> RS | D192: RHS | E192: RLM | F192: WH | G192: WHS | H192: HS | I192: PSAL | J192: BPL
B194: Summer - all hrs | C194: =+C130+($D$171*C80)+C$178+C181 -> 109.6052678 | D194: =+D130+($D$171*D80)+D$178+D181 -> 83.34454128 | F194: =+F130+($D$171*F80)+F$178+F181 -> 46.11247756 | G194: =+G130+($D$171*G80)+G$178+G181 -> 46.22369044 | H194: =+H130+($D$171*H80)+H$178+H181 -> 109.9625842 | I194: =+I130+($D$171*I80)+I$178+I181 -> 42.78206948 | J194: =+J130+($D$171*J80)+J$178+J181 -> 42.7907682
B195: PSE&G On pk | E195: =+E131+($D$171*E80)+E$178+E181 -> 210.6207799
B196: PSE&G Off pk | E196: =+E132+($D$171*E80) -> 41.09495125
B197: Block 1 (0-600 kWh/m) | C197: =(C194*SUM(C50:C53)-C166*10*C164*SUM(C50:C53))/SUM(C50:C53) -> 106.5424598 | D197: =(D194*SUM(D50:D53)-D166*10*D164*SUM(D50:D53))/SUM(D50:D53) -> 79.42265028
B198: Block 2 (>600 kWh/m) | C198: =+C197+C166*10 -> 115.1944598 | D198: =+D197+D166*10 -> 90.99165028
B200: Winter - all hrs | C200: =+C134+($D$171*C80)+C$178+C181 -> 115.8290826 | D200: =+D134+($D$171*D80)+D$178+D181 -> 91.09416272 | F200: =+F134+($D$171*F80)+F$178+F181 -> 52.2913345 | G200: =+G134+($D$171*G80)+G$178+G181 -> 52.83904375 | H200: =+H134+($D$171*H80)+H$178+H181 -> 117.2842677 | I200: =+I134+($D$171*I80)+I$178+I181 -> 50.93212363 | J200: =+J134+($D$171*J80)+J$178+J181 -> 51.19675183
B201: PSE&G On pk | E201: =+E135+($D$171*E80)+E$178+E181 -> 214.8693307
B202: PSE&G Off pk | E202: =+E136+($D$171*E80) -> 49.46692491
B204: Annual -all hrs | C204: =+C138+($D$171*C80)+C$178+C181 -> 113.1284226 | D204: =+D138+($D$171*D80)+D$178+D181 -> 89.24957843 | E204: =((E195*SUMPRODUCT(E32:E35,E50:E53)+E196*SUMPRODUCT(Q32:Q35,E50:E53))+(E201*(SUMPRODUCT(E27:E31,E45:E49)+SUMPRODUCT(E36:E38,E54:E56))+E202*(SUMPRODUCT(Q27:Q31,E45:E49)+SUMPRODUCT(Q36:Q38,E54:E56))))/E57 -> 121.660886 | F204: =+F138+($D$171*F80)+F$178+F181 -> 50.68780349 | G204: =+G138+($D$171*G80)+G$178+G181 -> 51.28249003 | H204: =+H138+($D$171*H80)+H$178+H181 -> 115.7779517 | I204: =+I138+($D$171*I80)+I$178+I181 -> 48.68247253 | J204: =+J138+($D$171*J80)+J$178+J181 -> 49.00334335
B206: DEMAND RATES
B207: includes energy and Ancillary Services, G&T obligations charged separately - adjusted to billing time periods
B208: in $/MWh
C209: =+K7 -> GLP | D209: =+L7 -> LPL-S | H209: PLUS: | I209: =+C209 -> GLP | J209: =+D209 -> LPL-S
B211: Summer - all hrs | C211: =+K130+($D$171*K80) -> 47.19924007 | D211: =+L130+($D$171*L$80) -> 46.80991173 | H211: Gen Cost
B212: PSE&G On pk | D212: =+L131+($D$171*L$80) -> 52.44921573 | H212: summer | I212: =+$F158*$E152/$H152/1000 -> 5.310965 | J212: =+$F158*$E152/$H152/1000 -> 5.310965 | K212: per kW of G obl /month
B213: PSE&G Off pk | D213: =+L132+($D$171*L$80) -> 41.05528934 | H213: winter | I213: =+$F159*$E153/$H153/1000 -> 5.28919875 | J213: =+$F159*$E153/$H153/1000 -> 5.28919875 | K213: per kW of G obl /month
H214: annual | I214: =($F$158*$E$152+$F$159*$E$153)/$H$154/1000 -> 5.296454167 | J214: =($F$158*$E$152+$F$159*$E$153)/$H$154/1000 -> 5.296454167 | K214: per kW of G obl /month
B215: Winter - all hrs | C215: =+K134+($D$171*K80) -> 52.8070504 | D215: =+L134+($D$171*L$80) -> 52.56885738
B216: PSE&G On pk | D216: =+L135+($D$171*L$80) -> 56.23311566 | H216: Trans cost
B217: PSE&G Off pk | D217: =+L136+($D$171*L$80) -> 49.04850886 | H217: all months | I217: =+$D155/1000/12 -> 9.553419167 | J217: =+$D155/1000/12 -> 9.553419167 | K217: per kW of T obl /month
B219: Annual - all hrs per MWh only | C219: =+K138+($D$171*K80) -> 50.74016671 | D219: =+L138+($D$171*L$80) -> 50.49314146
B221: Including T&G Obligation $
B222: Summer - all hrs | C222: =(C211*W49+((I214*$H152)*K147*1000)+(I217*$H152*K149*1000))/W49 -> 93.00768648 | D222: =(D211*X49+((J214*$H152)*L147*1000)+(J217*$H152*L149*1000))/X49 -> 79.08140283 | F222: Note: Obligation $ included in On pk costs
B223: PSE&G On pk | D223: =(D212*X50+((J214*$H152)*L147*1000)+(J217*$H152*L149*1000))/X50 -> 116.3455009
B224: PSE&G Off pk | D224: =+D213 -> 41.05528934
B226: Winter - all hrs | C226: =(C215*W45+((I214*$H153)*K147*1000)+(I217*$H153*K149*1000))/W45 -> 106.2849901 | D226: =(D215*X45+((J214*$H153)*L147*1000)+(J217*$H153*L149*1000))/X45 -> 88.94261243
B227: PSE&G On pk | D227: =(D216*X46+((J214*$H153)*L147*1000)+(J217*$H153*L149*1000))/X46 -> 130.4675633
B228: PSE&G Off pk | D228: =+D217 -> 49.04850886
B230: Annual - including T&G Obl $ | C230: =(C219*K57+((I214*$H152+I214*$H153)*K147*1000)+(I217*$H154*K149*1000))/K57 -> 101.3913434 | D230: =(D219*L57+((J214*$H152+J214*$H153)*L147*1000)+(J217*$H154*L149*1000))/L57 -> 85.38830388
B232: ALL RATES
B233: Grand Total Cost in $1000 = | C233: =(+SUMPRODUCT(C204:J204,C57:J57)+SUMPRODUCT(C230:D230,K57:L57))/1000 -> 2535370.683
C234: All-In Average cost @ customer = | D234: =+C233/SUM(C57:L57)*1000 -> 103.2895013 | E234: per MWh at customer (per customer metered MWh)
C235: All-In Average costs @ transmission nodes = | D235: =+C233/SUMPRODUCT(C57:L57,C85:L85)*1000 -> 97.85131652 | E235: per MWh at transmission nodes (per metered MWh at transmission node)
A238: Table #14 | B238: Ratio of BGS Unit Costs @ customer to All-In Average Cost @ transmission nodes - rounded to 3 decimal places, unit obligation $ rounded to 4 decimal places
B240: NON-DEMAND RATES
B241: includes energy, G&T obligations, and Ancillary Services - adjusted to billing time periods
C243: =+C7 -> RS | D243: RHS | E243: RLM | F243: WH | G243: WHS | H243: HS | I243: PSAL | J243: BPL
B245: Summer - all hrs | F245: =ROUND(+F194/$D$235,3) -> 0.471 | G245: =ROUND(+G194/$D$235,3) -> 0.472 | H245: =ROUND(+H194/$D$235,3) -> 1.124 | I245: =ROUND(+I194/$D$235,3) -> 0.437 | J245: =ROUND(+J194/$D$235,3) -> 0.437
B246: PSE&G On pk | E246: =ROUND(+E195/$D$235,3) -> 2.152 | J246: Use weighted average
B247: PSE&G Off pk | E247: =ROUND(+E196/$D$235,3) -> 0.42 | J247: for all streetlighting = | K247: =ROUND((I245*U49+J245*V49)/(U49+V49),3) -> 0.437
B249: All usage Multiplier | C249: =ROUND(+C194/$D$235,3) -> 1.12 | D249: =ROUND(+D194/$D$235,3) -> 0.852
B250: Constant (in $/MWh) | C250: =ROUND(+C197-C194,3) -> -3.063 | D250: =ROUND(D197-D194,3) -> -3.922 | E250: for Block 1 (0-600 kWh/m) usage
... 76 more rows

Sheet auction_results_and_rates
B1: Calculation of June 2020 to May 2021 BGS-RSCP Rates
B2: Illustrative Purposes Only
B3: NJ Sales & Use Tax (SUT) excluded
A5: Table A | B5: Auction Results
A6: line # | B6: Specific BGS-FP Auction >> | C6: =Input!C135 -> remaining portion of 36 month bid - 2018 auction | D6: =Input!D135 -> remaining portion of 36 month bid - 2019 auction | E6: =Input!E135 -> 36 month bid - 2020 auction | G6: Notes:
A8: 1 | B8: Winning Bid - in $/MWh | C8: =Input!C136 -> 91.77 | D8: =Input!D136 -> 98.04 | E8: =ROUND(IF(Input!E138="yes",Input!$E$136,IF(LEFT(Input!B2,6)="Rebase",Input!E136,(bid_factors!D235*(1+#REF!)*SUM(C20:C21)/1000-SUM(C26:D26))/(E$13/E$14/1000*(E16*$C20+E17*$C21)))),2) -> 98.04 | G8: ="Winning Bid" -> Winning Bid
A9: 1A | B9: Capacity Proxy Price True-up - in $/MWh | E9: 0 | G9: Entered after 2022 BGS Auction
B10: Total - in $/MWh | C10: =+C8+C9 -> 91.77 | D10: =+D8+D9 -> 98.04 | E10: =+E8+E9 -> 98.04 | G10: = line 1 + line 1A
B12: (includes all payments, including impact of PJM marginal losses)
A13: 2 | B13: # of Tranches for Bid | C13: =Input!C137 -> 29 | D13: =Input!D137 -> 28 | E13: =Input!E137 -> 28 | G13: from then current Bid
A14: 3 | B14: Total # of Tranches | C14: 85 | D14: 85 | E14: 85 | G14: from then current Bid
B15: Payment Factors
A16: 4 | B16: Summer | C16: =Input!C140 -> 1 | D16: =Input!D140 -> 1 | E16: =IF(LEFT(Input!$B$2,6)="rebase",Input!E140,bid_factors!L316) -> 1
A17: 5 | B17: Winter | C17: =Input!C141 -> 1 | D17: =Input!D141 -> 1 | E17: =IF(LEFT(Input!$B$2,6)="rebase",Input!E141,bid_factors!L317) -> 1
B19: Applicable Customer Usage @ transmission nodes - in MWh
A20: 6 | B20: Summer MWh | C20: =+bid_factors!C352 -> 10317899.91 | G20: from Table #17 of the current Bid Factor Spreadsheet
A21: 7 | B21: Winter MWh | C21: =+bid_factors!C353 -> 15592540.27
B23: Total Payment to Suppliers - in $1000
A24: 8 | B24: Summer | C24: =+C$8*C$13/C$14*C16*$C20/1000+C$9*C$13/C$14*$C20/1000 -> 323051.0186 | D24: =+D$8*D$13/D$14*D16*$C20/1000+D$9*D$13/D$14*$C20/1000 -> 333222.0401 | E24: 333222.0401 | G24: = (1) * (2)/(3) * (4) * (6) + (1A) * (2)/(3) * (6)
A25: 9 | B25: Winter | C25: =+C$8*C$13/C$14*C17*$C21/1000+C$9*C$13/C$14*$C21/1000 -> 488198.767 | D25: =+D$8*D$13/D$14*D17*$C21/1000+D$9*D$13/D$14*$C21/1000 -> 503569.3428 | E25: 503569.3428 | G25: = (1) * (2)/(3) * (5) * (7) + (1A) * (2)/(3) * (7)
A26: 10 | B26: Total | C26: =+C25+C24 -> 811249.7855 | D26: =+D25+D24 -> 836791.383 | E26: =+E25+E24 -> 836791.383 | G26: Note: $ reflect total payment
B28: Average Payment to Suppliers - in $/MWh
A29: 11 | B29: Summer | C29: =ROUND(+SUM(C24:E24)/C20*1000,3) -> 95.901 | G29: = sum(line 8) / (6) - rounded to 3 decimal places
A30: 12 | B30: Winter | C30: =ROUND(+SUM(C25:E25)/C21*1000,3) -> 95.901 | G30: = sum(line 9) / (7) - rounded to 3 decimal places
A32: 13 | B32: Total weighted average | C32: =ROUND(+SUM(C26:E26)/(C20+C21)*1000,3) -> 95.901 | D32: <<< used in calculation of | G32: = sum(line 10) / [ (6) + (7)]
D33: Customer Rates | G33: rounded to 3 decimal places
B35: Reconciliation of amounts - in $1000
A36: 14 | B36: Weighted Average * Total MWh = | C36: =(C32*(C21+C20))/1000 -> 2484837.124 | G36: = (13) * [(6)+(7)] / 1000
A37: 15 | B37: Total Payment to Suppliers = | C37: =SUM(C26:E26) -> 2484832.551 | G37: = sum (line 10)
A38: 16 | B38: Difference = | C38: =+C36-C37 -> 4.57243062 | G38: = line (14) - line (15)
A41: Table B | B41: Ratio of BGS Unit Costs @ customer to All-In Average Cost @ transmission nodes | G41: from Table #14 of the bid factor spreadsheet ---
G42: rounded to 3 decimal places, unit obligation $ rounded to 4 decimal places
B43: NON-DEMAND RATES
B44: includes energy, G&T obligations, and Ancillary Services - adjusted to billing time periods
C46: =+bid_factors!C243 -> RS | D46: =+bid_factors!D243 -> RHS | E46: =+bid_factors!E243 -> RLM | F46: =+bid_factors!F243 -> WH | G46: =+bid_factors!G243 -> WHS | H46: =+bid_factors!H243 -> HS | I46: =+bid_factors!I243 -> PSAL | J46: =+bid_factors!J243 -> BPL
B48: Summer - all hrs | F48: =+bid_factors!F245 -> 0.471 | G48: =+bid_factors!G245 -> 0.472 | H48: =+bid_factors!H245 -> 1.124 | I48: =+bid_factors!I245 -> 0.437 | J48: =+bid_factors!J245 -> 0.437
B49: PSE&G On pk | E49: =+bid_factors!E246 -> 2.152 | J49: Use weighted average
B50: PSE&G Off pk | E50: =+bid_factors!E247 -> 0.42 | J50: for all streetlighting = | K50: =+bid_factors!K247 -> 0.437
B52: All usage Multiplier | C52: =+bid_factors!C249 -> 1.12 | D52: =+bid_factors!D249 -> 0.852
B53: Constant (in $/MWh) | C53: =+bid_factors!C250 -> -3.063 | D53: =+bid_factors!D250 -> -3.922 | E53: for Block 1 (0-600 kWh/m) usage
B54: Constant (in $/MWh) | C54: =+bid_factors!C251 -> 5.589 | D54: =+bid_factors!D251 -> 7.647 | E54: for Block 2 (>600 kWh/m) usage
B58: Winter - all hrs | C58: =+bid_factors!C255 -> 1.184 | D58: =+bid_factors!D255 -> 0.931 | F58: =+bid_factors!F255 -> 0.534 | G58: =+bid_factors!G255 -> 0.54 | H58: =+bid_factors!H255 -> 1.199 | I58: =+bid_factors!I255 -> 0.521 | J58: =+bid_factors!J255 -> 0.523
B59: PSE&G On pk | E59: =+bid_factors!E256 -> 2.196 | J59: Use weighted average
B60: PSE&G Off pk | E60: =+bid_factors!E257 -> 0.506 | J60: for all streetlighting = | K60: =+bid_factors!K257 -> 0.522
B62: Annual - all hrs | C62: =+bid_factors!C259 -> 1.156 | D62: =+bid_factors!D259 -> 0.912 | E62: =+bid_factors!E259 -> 1.243 | F62: =+bid_factors!F259 -> 0.518 | G62: =+bid_factors!G259 -> 0.524 | H62: =+bid_factors!H259 -> 1.183 | I62: =+bid_factors!I259 -> 0.498 | J62: =+bid_factors!J259 -> 0.501
B65: DEMAND RATES
B66: includes energy and Ancillary Services, G&T obligations charged separately - adjusted to billing time periods
C68: =+bid_factors!C265 -> GLP | D68: =+bid_factors!D265 -> GLP | E68: =+bid_factors!E265 -> LPL-S | F68: =+bid_factors!F265 -> LPL-S | H68: PLUS: | I68: =+C68 -> GLP | J68: =+E68 -> LPL-S
C69: Multiplier | D69: Constant (in $/MWh) | E69: Multiplier | F69: Constant (in $/MWh)
B70: Summer - all hrs | C70: =+bid_factors!C267 -> 0.951 | D70: =+bid_factors!D267 -> -45.808 | H70: Gen Cost
B71: PSE&G On pk | E71: =+bid_factors!E268 -> 1.189 | F71: =+bid_factors!F268 -> -63.896 | H71: summer | I71: =+bid_factors!I$270 -> 5.2965 | J71: =+bid_factors!J$270 -> 5.2965 | K71: per kW of G obl /month
B72: PSE&G Off pk | E72: =+bid_factors!E269 -> 0.42 | F72: =+bid_factors!F269 -> 0 | H72: winter | I72: =+bid_factors!I$270 -> 5.2965 | J72: =+bid_factors!J$270 -> 5.2965 | K72: per kW of G obl /month
B74: Winter - all hrs | C74: =+bid_factors!C271 -> 1.086 | D74: =+bid_factors!D271 -> -53.478 | H74: Trans cost
B75: PSE&G On pk | E75: =+bid_factors!E272 -> 1.333 | F75: =+bid_factors!F272 -> -74.234 | H75: all months | I75: =+bid_factors!I273 -> 9.5534 | J75: =+bid_factors!J273 -> 9.5534 | K75: per kW of T obl /month
B76: PSE&G Off pk | E76: =+bid_factors!E273 -> 0.501 | F76: =+bid_factors!F273 -> 0
B78: Annual - including T&G Obl $ | C78: =+bid_factors!C275 -> 1.036 | E78: =+bid_factors!E275 -> 0.873
A81: Table C | B81: Preliminary Resulting BGS Rates (in cents per kWh) - equal to bid factors times weighted average bid price
B82: rounded to 4 decimal places
B84: NON-DEMAND RATES -----------------------------------------------------------------------------------------------------------------------------------------------------------------------
B85: includes energy, G&T obligations, and Ancillary Services - adjusted to billing time periods
C87: =+C46 -> RS | D87: =+D46 -> RHS | E87: RLM | F87: WH | G87: WHS | H87: HS | I87: PSAL | J87: BPL
B89: Summer - all hrs | F89: =ROUND(($C$32*F48)/10,4) -> 4.5169 | G89: =ROUND(($C$32*G48)/10,4) -> 4.5265 | H89: =ROUND(($C$32*H48)/10,4) -> 10.7793 | I89: =ROUND(($C$32*K50)/10,4) -> 4.1909 | J89: =+I89 -> 4.1909
B90: PSE&G On pk | E90: =ROUND(($C$32*E49)/10,4) -> 20.6379
B91: PSE&G Off pk | E91: =ROUND(($C$32*E50/10),4) -> 4.0278
B93: for Block 1 (0-600 kWh/m) usage | C93: =ROUND((+$C$32*C52+C53)/10,4) -> 10.4346 | D93: =ROUND((+$C$32*D52+D53)/10,4) -> 7.7786
B94: for Block 2 (>600 kWh/m) usage | C94: =ROUND((+$C$32*C52+C54)/10,4) -> 11.2998 | D94: =ROUND((+$C$32*D52+D54)/10,4) -> 8.9355
B96: Winter - all hrs | C96: =ROUND(($C$32*C58)/10,4) -> 11.3547 | D96: =ROUND(($C$32*D58)/10,4) -> 8.9284 | F96: =ROUND(($C$32*F58)/10,4) -> 5.1211 | G96: =ROUND(($C$32*G58)/10,4) -> 5.1787 | H96: =ROUND(($C$32*H58)/10,4) -> 11.4985 | I96: =ROUND(($C$32*K60)/10,4) -> 5.006 | J96: =+I96 -> 5.006
B97: PSE&G On pk | E97: =ROUND(($C$32*E59)/10,4) -> 21.0599
B98: PSE&G Off pk | E98: =ROUND(($C$32*E60)/10,4) -> 4.8526
B102: DEMAND RATES --------------------------------------------------------------------------------------------------------------------------------------------------------------------------------
B103: includes energy and Ancillary Services, G&T obligations charged separately - adjusted to billing time periods
C105: =+C68 -> GLP | E105: =+E68 -> LPL-S | H105: PLUS: | I105: =+C105 -> GLP | J105: =+E105 -> LPL-S
B107: Summer - all hrs | C107: =ROUND(($C$32*C70+D70)/10,4) -> 4.5394 | H107: Gen Cost
B108: PSE&G On pk | E108: =ROUND(($C$32*E71+F71)/10,4) -> 5.013 | H108: summer | I108: =+I71 -> 5.2965 | J108: =+J71 -> 5.2965 | K108: per kW of G obl /month
B109: PSE&G Off pk | E109: =ROUND(($C$32*E72+F72)/10,4) -> 4.0278 | H109: winter | I109: =+I72 -> 5.2965 | J109: =+J72 -> 5.2965 | K109: per kW of G obl /month
B111: Winter - all hrs | C111: =ROUND(($C$32*C74+D74)/10,4) -> 5.067 | H111: Trans cost
B112: PSE&G On pk | E112: =ROUND(($C$32*E75+F75)/10,4) -> 5.3602 | H112: all months | I112: =+I75 -> 9.5534 | J112: =+J75 -> 9.5534 | K112: per kW of T obl /month
B113: PSE&G Off pk | E113: =ROUND(($C$32*E76+F76)/10,4) -> 4.8046
A117: Table D | B117: Revenue Recovery Calculations - Reconciliation of seasonal Customer Revenue and Supplier Payments, based on actual anticipated revenues and payments
C119: RS | D119: RHS | E119: RLM | F119: WH | G119: WHS | H119: HS | I119: PSAL | J119: BPL
B120: Total Preliminary Rate Revenue - in $1000
B121: Summer | C121: =+C93/100*bid_factors!O53+auction_results_and_rates!C94/100*bid_factors!O54 -> 577675.6092 | D121: =+D93/100*bid_factors!P53+auction_results_and_rates!D94/100*bid_factors!P54 -> 2138.464269 | E121: =+E90/100*bid_factors!Q50+E91/100*bid_factors!Q51 -> 10713.42593 | F121: =+F89/100*bid_factors!R49 -> 11.698771 | G121: =+G89/100*bid_factors!S49 -> 0.18106 | H121: =+H89/100*bid_factors!T49 -> 280.7605564 | I121: =+I89/100*bid_factors!U49 -> 1770.948613 | J121: =+J89/100*bid_factors!V49 -> 3112.371885
B122: Winter | C122: =+C96/100*bid_factors!O45 -> 796675.756 | D122: =+D96/100*bid_factors!P45 -> 7480.588475 | E122: =+E97/100*bid_factors!Q46+auction_results_and_rates!E98/100*bid_factors!Q47 -> 12042.14407 | F122: =+F96/100*bid_factors!R45 -> 37.844929 | G122: =+G96/100*bid_factors!S45 -> 0.673231 | H122: =+H96/100*bid_factors!T45 -> 1156.239499 | I122: =+I96/100*bid_factors!U45 -> 5548.24992 | J122: =+J96/100*bid_factors!V45 -> 10529.97082
B123: Total | C123: =+C122+C121 -> 1374351.365 | D123: =+D122+D121 -> 9619.052744 | E123: 22755.57001 | F123: 49.5437 | G123: 0.854291 | H123: 1437.000055 | I123: 7319.198533 | J123: 13642.34271
C126: GLP | D126: GLP | F126: LPL-S | G126: LPL-S
C127: Energy $ | D127: Obligation $ | F127: Energy $ | G127: Obligation $
B129: Summer | C129: =+C107/100*bid_factors!W49 -> 108584.0426 | D129: =I108*bid_factors!K147*4+auction_results_and_rates!I112*bid_factors!K149*4 -> 109575.6408 | F129: =+E108/100*bid_factors!X50+auction_results_and_rates!E109/100*bid_factors!X51 -> 80079.43614 | G129: =auction_results_and_rates!J108*bid_factors!L147*4+auction_results_and_rates!J112*bid_factors!L149*4 -> 57106.48164
B130: Winter | C130: =+C111/100*bid_factors!W45 -> 207643.9823 | D130: =auction_results_and_rates!I109*bid_factors!K147*8+auction_results_and_rates!I112*bid_factors!K149*8 -> 219151.2816 | F130: =+E112/100*bid_factors!X46+auction_results_and_rates!E113/100*bid_factors!X47 -> 159411.4098 | G130: =auction_results_and_rates!J109*bid_factors!L147*8+auction_results_and_rates!J112*bid_factors!L149*8 -> 114212.9633
B131: Total | C131: =+C130+C129 -> 316228.0249 | D131: =+D130+D129 -> 328726.9224 | F131: =+F130+F129 -> 239490.846 | G131: =+G130+G129 -> 171319.4449
C134: Energy $ | D134: Obligation $ | E134: Total $
B135: Total Summer | C135: =SUM(C121:J121)+C129+F129 -> 784366.939 | D135: =+D129+G129 -> 166682.1224 | E135: =+C135+D135 -> 951049.0615
B136: Total Winter | C136: =SUM(C122:J122)+C130+F130 -> 1200526.859 | D136: =+D130+G130 -> 333364.2449 | E136: =+C136+D136 -> 1533891.104
B137: Grand Total | C137: =+C136+C135 -> 1984893.798 | D137: =+D131+G131 -> 500046.3673 | E137: =+C137+D137 -> 2484940.165
B140: Total Supplier Payment - in $1000
B141: Summer | C141: =+C24+D24+E24 -> 989495.0988
B142: Winter | C142: =+C25+D25+E25 -> 1495337.453
B143: Total | C143: =+C142+C141 -> 2484832.551 | E143: kWh Rate
E144: Adjustment | F144: rounded to 5 decimal places
B145: Differences - in $1000 | E145: Factors
B146: Summer | C146: =+C141-E135 -> 38446.03736 | E146: =ROUND(1+(C146/C135),5) -> 1.04902
B147: Winter | C147: =+C142-E136 -> -38553.65121 | E147: =ROUND(1+(C147/C136),5) -> 0.96789
B148: Total | C148: =+C143-E137 -> -107.6138551
C150: Note: These differences are due to rounding and seasonal differences in Bidder Payments (which are based on prior
C151: wining bids and Seasonal Payment Factors) and current Rates (based on current seasonal market differentials)
A153: Table E | B153: Final Resulting BGS Rates from Auctions (in cents per kWh) - with preliminary kWh rates adjusted by the kWh Rate Adjustment Factor
B154: rounded to 4 decimal places
B156: NON-DEMAND RATES -----------------------------------------------------------------------------------------------------------------------------------------------------------------------
B157: includes energy, G&T obligations, and Ancillary Services - adjusted to billing time periods & adjustment to energy price
C159: =+C119 -> RS | D159: =+D119 -> RHS | E159: RLM | F159: WH | G159: WHS | H159: HS | I159: PSAL | J159: BPL
B161: Summer - all hrs | F161: =ROUND(+F89*$E$146,4) -> 4.7383 | G161: =ROUND(+G89*$E$146,4) -> 4.7484 | H161: =ROUND(+H89*$E$146,4) -> 11.3077 | I161: =ROUND(+I89*$E$146,4) -> 4.3963 | J161: =ROUND(+J89*$E$146,4) -> 4.3963
B162: PSE&G On pk | E162: =ROUND(+E90*$E$146,4) -> 21.6496
B163: PSE&G Off pk | E163: =ROUND(+E91*$E$146,4) -> 4.2252
B165: for Block 1 (0-600 kWh/m) usage | C165: =ROUND(+C93*$E$146,4) -> 10.9461 | D165: =ROUND(+D93*$E$146,4) -> 8.1599
B166: for Block 2 (>600 kWh/m) usage | C166: =ROUND(+C94*$E$146,4) -> 11.8537 | D166: =ROUND(+D94*$E$146,4) -> 9.3735
B168: Winter - all hrs | C168: =ROUND(+C96*$E$147,4) -> 10.9901 | D168: =ROUND(+D96*$E$147,4) -> 8.6417 | F168: =ROUND(+F96*$E$147,4) -> 4.9567 | G168: =ROUND(+G96*$E$147,4) -> 5.0124 | H168: =ROUND(+H96*$E$147,4) -> 11.1293 | I168: =ROUND(+I96*$E$147,4) -> 4.8453 | J168: =ROUND(+J96*$E$147,4) -> 4.8453
B169: PSE&G On pk | E169: =ROUND(+E97*$E$147,4) -> 20.3837
B170: PSE&G Off pk | E170: =ROUND(+E98*$E$147,4) -> 4.6968
B174: DEMAND RATES --------------------------------------------------------------------------------------------------------------------------------------------------------------------------------
B175: includes energy and Ancillary Services, G&T obligations charged separately - adjusted to billing time periods & adjustment to energy price
C177: =+C105 -> GLP | E177: =+E105 -> LPL-S | H177: PLUS: | I177: =+C177 -> GLP | J177: =+E177 -> LPL-S
B179: Summer - all hrs | C179: =ROUND(+C107*$E$146,4) -> 4.7619 | H179: Gen Cost
B180: PSE&G On pk | E180: =ROUND(+E108*$E$146,4) -> 5.2587 | H180: summer | I180: =+I108 -> 5.2965 | J180: =+J108 -> 5.2965
B181: PSE&G Off pk | E181: =ROUND(+E109*$E$146,4) -> 4.2252 | H181: winter | I181: =+I109 -> 5.2965 | J181: =+J109 -> 5.2965
B183: Winter - all hrs | C183: =ROUND(+C111*$E$147,4) -> 4.9043 | H183: Trans cost
B184: PSE&G On pk | E184: =ROUND(+E112*$E$147,4) -> 5.1881 | H184: all months | I184: =+I112 -> 9.5534 | J184: =+J112 -> 9.5534
B185: PSE&G Off pk | E185: =ROUND(+E113*$E$147,4) -> 4.6503
A189: Table F | B189: Spreadsheet Error Checking - Checking of seasonal Customer Revenue and Supplier Payments, based on final actual anticipated revenues and payments
C191: RS | D191: RHS | E191: RLM | F191: WH | G191: WHS | H191: HS | I191: PSAL | J191: BPL | K191: GLP | L191: LPL-S
B192: Total Rate Revenue - in $1000
B193: Summer | C193: =+C165/100*bid_factors!O53+auction_results_and_rates!C166/100*bid_factors!O54 -> 605992.817 | D193: =+D165/100*bid_factors!P53+auction_results_and_rates!D166/100*bid_factors!P54 -> 2243.288965 | E193: =+E162/100*bid_factors!Q50+E163/100*bid_factors!Q51 -> 11238.59117 | F193: =+F161/100*bid_factors!R49 -> 12.272197 | G193: =+G161/100*bid_factors!S49 -> 0.189936 | H193: =+H161/100*bid_factors!T49 -> 294.5234054 | I193: =+I161/100*bid_factors!U49 -> 1857.744491 | J193: =+J161/100*bid_factors!V49 -> 3264.912195 | K193: =+C179/100*bid_factors!W49+I180*bid_factors!K147*4+auction_results_and_rates!I184*bid_factors!K149*4 -> 223481.9616 | L193: =+E180/100*bid_factors!X50+auction_results_and_rates!E181/100*bid_factors!X51+auction_results_and_rates!J180*bid_factors!L147*4+auction_results_and_rates!J184*bid_factors!L149*4 -> 141110.7043
B194: Winter | C194: =+C168/100*bid_factors!O45 -> 771094.4565 | D194: =+D168/100*bid_factors!P45 -> 7240.379175 | E194: =+E169/100*bid_factors!Q46+auction_results_and_rates!E170/100*bid_factors!Q47 -> 11655.49528 | F194: =+F168/100*bid_factors!R45 -> 36.630013 | G194: =+G168/100*bid_factors!S45 -> 0.651612 | H194: =+H168/100*bid_factors!T45 -> 1119.114341 | I194: =+I168/100*bid_factors!U45 -> 5370.142896 | J194: =+J168/100*bid_factors!V45 -> 10191.94319 | K194: =+C183/100*bid_factors!W45+auction_results_and_rates!I181*bid_factors!K147*8+auction_results_and_rates!I184*bid_factors!K149*8 -> 420127.8717 | L194: =+E184/100*bid_factors!X46+auction_results_and_rates!E185/100*bid_factors!X47+auction_results_and_rates!J181*bid_factors!L147*8+auction_results_and_rates!J184*bid_factors!L149*8 -> 268505.5302
B195: Total | C195: =+C194+C193 -> 1377087.274 | D195: 9483.66814 | E195: 22894.08646 | F195: 48.90221 | G195: 0.841548 | H195: 1413.637747 | I195: 7227.887387 | J195: 13456.85539 | K195: 643609.8333 | L195: 409616.2344
B197: Total Summer | C197: =SUM(C193:L193) -> 989497.0052
B198: Total Winter | C198: =SUM(C194:L194) -> 1495342.215
B199: Grand Total | C199: =+C198+C197 -> 2484839.22
B202: Total Supplier Payment - in $1000
B203: Summer | C203: =+C24+D24+E24 -> 989495.0988
B204: Winter | C204: =+C25+D25+E25 -> 1495337.453
B205: Total | C205: =+C204+C203 -> 2484832.551
B207: Differences - in $1000 | E207: % difference
B208: Summer | C208: =+C197-C203 -> 1.906399223 | E208: =+C208/C197 -> 1.926634657e-06
B209: Winter | C209: =+C198-C204 -> 4.762304316 | E209: =+C209/C198 -> 3.184758826e-06
B210: Total | C210: =+C199-C205 -> 6.668703539 | E210: =+C210/C199 -> 2.683756552e-06

Sheet 4-1
B1: Development of Capacity Proxy Price True-Up - $/MWh
B2: 2020/2021 Delivery Year
C3: 2020/21 Delivery Year | E3: Notes:
A4: 1 | B4: PJM Final Zonal Net Load Price ($/MW-day) - Zone | C4: =Input!E113 -> 174.13 | E4: PJM RPM Final Zonal Net Load Price - Zone
A5: 2 | B5: Capacity Proxy Price ($/MW-day) | C5: N/A
A7: 3 | B7: Capacity Proxy Price True-Up - $/MW-day | C7: N/A | E7: = line 1 - line 2
A8: 4 | B8: BGS-RSCP Gen Obl - MW | C8: =SUM(bid_factors!C147:L147) -> 7858.6
A9: 5 | B9: Days in Year | C9: 365
A10: 6 | B10: Capacity Proxy Price True-Up Annual Cost | C10: N/A | E10: = line 3 * line 4 * line 5
A12: 7 | B12: Eligible Tranches | C12: 28 | E12: from Table A
A13: 8 | B13: Total Tranches | C13: 85 | E13: from Table A
A14: 9 | B14: % of tranches eligible for payment | C14: =C12/C13 -> 0.3294117647 | E14: = line 7 / line 8
A16: 10 | B16: Capacity Proxy Price True-Up Cost | C16: =IFERROR(C10*9,0) -> 0 | E16: = line 6 * line 9
A18: 11 | B18: Total Applicable Customer Usage @ transmission nodes - in MWh | C18: =SUM(auction_results_and_rates!C20:C21) -> 25910440.18
A19: 12 | B19: Eligible Customer Usage @ transmission nodes - in MWh | C19: =C14*C18 -> 8535203.825 | E19: = line 9 * line 11
A21: 13 | B21: Capacity Proxy Price True-Up - $/MWh | C21: =IFERROR(ROUND(C16/C19,2),0) -> 0 | E21: = line 10/ line 12 - rounded to 2 decimal places

Sheet 4-2
B1: Development of Capacity Proxy Price True-Up - $/MWh
B2: Using 2022/2023 Illustrative Data for PSE&G
C3: 2022/23 Delivery Year | E3: Notes:
A4: 1 | B4: ='4-1'!B4 -> PJM Final Zonal Net Load Price ($/MW-day) - Zone | C4: 165 | E4: PJM RPM Final Zonal Net Load Price - Zone - Illustative Only
A5: 2 | B5: ='4-1'!B5 -> Capacity Proxy Price ($/MW-day) | C5: 162.13 | E5: per Board Order dated 11/13/2019
A7: 3 | B7: ='4-1'!B7 -> Capacity Proxy Price True-Up - $/MW-day | C7: =+C4-C5 -> 2.87 | E7: = line 1 - line 2
A8: 4 | B8: ='4-1'!B8 -> BGS-RSCP Gen Obl - MW | C8: =SUM(bid_factors!C147:L147) -> 7858.6
A9: 5 | B9: ='4-1'!B9 -> Days in Year | C9: 365
A10: 6 | B10: ='4-1'!B10 -> Capacity Proxy Price True-Up Annual Cost | C10: =C7*C8*C9 -> 8232276.43 | E10: = line 3 * line 4 * line 5
A12: 7 | B12: ='4-1'!B12 -> Eligible Tranches | C12: 28 | E12: from Table A
A13: 8 | B13: ='4-1'!B13 -> Total Tranches | C13: 85 | E13: from Table A
A14: 9 | B14: ='4-1'!B14 -> % of tranches eligible for payment | C14: =+C12/C13 -> 0.3294117647 | E14: = line 7 / line 8
A16: 10 | B16: ='4-1'!B16 -> Capacity Proxy Price True-Up Cost | C16: =+C10*C14 -> 2711808.706 | E16: = line 6 * line 9
A18: 11 | B18: ='4-1'!B18 -> Total Applicable Customer Usage @ transmission nodes - in MWh | C18: =SUM(auction_results_and_rates!C20:C21) -> 25910440.18
A19: 12 | B19: ='4-1'!B19 -> Eligible Customer Usage @ transmission nodes - in MWh | C19: =+C14*C18 -> 8535203.825 | E19: = line 9 * line 11
A21: 13 | B21: ='4-1'!B21 -> Capacity Proxy Price True-Up - $/MWh | C21: =ROUND(+C16/C19,2) -> 0.32 | E21: = line 10/ line 12 - rounded to 2 decimal places

Sheet 4-3
A1: Table A With Additional Line Item
A2: Calculation of June 2022 to May 2023 BGS-RSCP Rates
A3: Illustrative Purposes Only
A4: NJ Sales & Use Tax (SUT) excluded
A6: Table A | B6: Auction Results
A7: line # | B7: Specific BGS-RSCP Auction >> | C7: remaining portion of 36 month bid - 2020 auction | D7: remaining portion of 36 month bid - 2021 auction | E7: 36 month bid - 2022 auction | G7: Notes:
A9: 1 | B9: Winning Bid - in $/MWh | C9: =auction_results_and_rates!$E$8 -> 98.04 | D9: =auction_results_and_rates!$E$8 -> 98.04 | E9: =auction_results_and_rates!$E$8 -> 98.04 | G9: Winning Bid
A10: 1A | B10: Capacity Proxy Price True-up - in $/MWh | C10: ='4-2'!C21 -> 0.32 | G10: Entered after 2022 BGS Auction
B11: Total - in $/MWh | C11: =+C9+C10 -> 98.36 | D11: =+D9+D10 -> 98.04 | E11: =+E9+E10 -> 98.04 | G11: = line 1 + line 1A
B13: (includes all payments, including impact of PJM marginal losses) | G13: =C10/C9 -> 0.003263973888
A14: 2 | B14: # of Tranches for Bid | C14: 28 | D14: 29 | E14: 28
A15: 3 | B15: Total # of Tranches | C15: 85 | D15: 85 | E15: 85
B16: Payment Factors
A17: 4 | B17: Summer | C17: =Input!C140 -> 1 | D17: =Input!D140 -> 1 | E17: =Input!E140 -> 1
A18: 5 | B18: Winter | C18: =Input!C141 -> 1 | D18: =Input!D141 -> 1 | E18: =Input!E141 -> 1
B20: Applicable Customer Usage @ transmission nodes - in MWh
A21: 6 | B21: Summer MWh | C21: =auction_results_and_rates!C20 -> 10317899.91
A22: 7 | B22: Winter MWh | C22: =auction_results_and_rates!C21 -> 15592540.27
B24: Total Payment to Suppliers - in $1000
A25: 8 | B25: Summer | C25: =+C$9*C$14/C$15*C17*$C21/1000+C$10*C$14/C$15*$C21/1000 -> 334309.6682 | D25: 345122.8273 | E25: 333222.0401 | G25: = (1+1A) * (2)/(3) * (4) * (6) + (1A) * (2)/(3) * (6)
A26: 9 | B26: Winter | C26: 505212.98 | D26: 521553.9622 | E26: 503569.3428 | G26: = (1+1A) * (2)/(3) * (5) * (7) + (1A) * (2)/(3) * (7)
A27: 10 | B27: Total | C27: =+C26+C25 -> 839522.6482 | D27: =+D26+D25 -> 866676.7895 | E27: =+E26+E25 -> 836791.383 | G27: Note: $ reflect total payment
B29: Average Payment to Suppliers - in $/MWh
A30: 11 | B30: Summer | C30: =ROUND(+SUM(C25:E25)/C21*1000,3) -> 98.145 | G30: = sum(line 8) / (6) - rounded to 3 decimal places
A31: 12 | B31: Winter | C31: =ROUND(+SUM(C26:E26)/C22*1000,3) -> 98.145 | G31: = sum(line 9) / (7) - rounded to 3 decimal places
A33: 13 | B33: Total weighted average | C33: =ROUND(+SUM(C27:E27)/(C21+C22)*1000,3) -> 98.145 | D33: <<< used in calculation of | G33: = sum(line 10) / [ (6) + (7)]
D34: Customer Rates | G34: rounded to 3 decimal places
